{"text_format":"1","workbook":"xlsx","n_sheets":6,"sheets":["U026","Catálogo_PP´s","ODS","sub_eje","CF","Ejes y subejes_"],"not_rendered":{"charts":0,"images":6,"macros":1,"external_links":1,"defined_names":12,"comments":0,"pivot_tables":0},"unopened":[],"bounds":{"document_bytes":16777216,"sheet_cells":100000,"rows_first":2000,"rows_last":500,"rows_between":2000,"halvings":0,"cell_chars":16384,"cell_head_chars":4096},"cells_cut":0,"cells_raw":0,"read":"whole","date_system":"1900"}

{"sheet":"U026","index":0,"n_rows":122,"n_cols":16,"rows_kept":122,"cut":false,"hidden":false,"merged":[[121,2,121,7],[121,11,122,15],[122,2,122,7],[114,1,115,8],[114,10,114,16],[115,10,115,16],[117,2,117,7],[117,11,117,15],[120,2,120,7],[120,11,120,15],[110,1,110,8],[110,9,110,16],[111,1,112,8],[111,10,111,16],[112,10,112,16],[113,1,113,8],[113,9,113,16],[105,1,106,8],[105,10,105,16],[106,10,106,16],[107,1,107,8],[107,9,107,16],[108,1,109,8],[108,10,108,16],[109,10,109,16],[101,1,101,8],[101,9,101,16],[102,1,103,8],[102,10,102,16],[103,10,103,16],[104,1,104,8],[104,9,104,16],[96,1,97,8],[96,10,96,16],[97,10,97,16],[98,1,98,8],[98,9,98,16],[99,1,100,8],[99,10,99,16],[100,10,100,16],[92,1,92,8],[92,9,92,16],[93,1,94,8],[93,10,93,16],[94,10,94,16],[95,1,95,8],[95,9,95,16],[87,1,88,8],[87,10,87,16],[88,10,88,16],[89,1,89,8],[89,9,89,16],[90,1,91,8],[90,10,90,16],[91,10,91,16],[83,1,83,8],[83,9,83,16],[84,1,85,8],[84,10,84,16],[85,10,85,16],[86,1,86,8],[86,9,86,16],[78,1,79,8],[78,10,78,16],[79,10,79,16],[80,1,80,8],[80,9,80,16],[81,1,82,8],[81,10,81,16],[82,10,82,16],[74,1,74,8],[74,9,74,16],[75,1,76,8],[75,10,75,16],[76,10,76,16],[77,1,77,8],[77,9,77,16],[69,1,70,8],[69,10,69,16],[70,10,70,16],[71,1,71,8],[71,9,71,16],[72,1,73,8],[72,10,72,16],[73,10,73,16],[65,1,65,8],[65,9,65,16],[66,1,67,8],[66,10,66,16],[67,10,67,16],[68,1,68,8],[68,9,68,16],[60,1,61,8],[60,10,60,16],[61,10,61,16],[62,1,62,8],[62,9,62,16],[63,1,64,8],[63,10,63,16],[64,10,64,16],[56,1,56,8],[56,9,56,16],[57,1,58,8],[57,10,57,16],[58,10,58,16],[59,1,59,8],[59,9,59,16],[51,1,52,8],[51,10,51,16],[52,10,52,16],[53,1,53,8],[53,9,53,16],[54,1,55,8],[54,10,54,16],[55,10,55,16],[47,1,47,8],[47,9,47,16],[48,1,49,8],[48,10,48,16],[49,10,49,16],[50,1,50,8],[50,9,50,16],[39,1,40,8],[39,10,39,16],[40,10,40,16],[41,1,41,8],[41,9,41,16],[42,1,43,8],[42,10,42,16],[43,10,43,16],[44,1,44,8],[44,9,44,16],[45,1,46,8],[45,10,45,16],[46,10,46,16],[36,1,36,8],[36,9,36,16],[37,1,37,8],[37,10,37,16],[38,1,38,8],[38,9,38,16],[34,1,34,4],[34,5,34,8],[34,9,34,12],[34,13,34,16],[35,1,35,8],[35,9,35,16],[32,2,32,6],[32,7,32,10],[32,12,32,16],[33,1,33,4],[33,5,33,8],[33,9,33,12],[33,13,33,16],[27,1,27,3],[27,4,27,16],[29,1,29,16],[30,1,31,1],[30,2,31,6],[30,7,31,10],[30,11,31,11],[30,12,31,16],[23,1,23,16],[24,1,24,3],[24,4,24,16],[25,1,25,3],[25,4,25,16],[26,1,26,3],[26,4,26,16],[19,14,20,16],[20,6,20,11],[21,3,21,4],[21,7,21,8],[21,11,21,12],[21,15,21,16],[16,1,16,3],[16,4,16,5],[16,6,16,16],[17,1,17,3],[17,4,17,16],[18,1,20,3],[18,6,18,11],[18,12,20,13],[18,14,18,16],[19,6,19,11],[9,1,9,16],[10,2,10,16],[11,2,11,16],[12,2,12,16],[13,2,13,16],[15,1,15,16],[1,1,1,16],[2,1,2,16],[4,1,4,16],[6,1,6,16],[7,1,7,3],[7,4,7,5],[7,6,7,16]]}
[]
[null,"SECRETARÍA DE ADMINISTRACIÓN Y FINANZAS"]
[null,"SUBSECRETARÍA DE EGRESOS"]
[]
[]
[]
[]
[null,"Unidad Responsable",null,null,"02CD14",null,{"$f":"IFERROR(VLOOKUP(E8,CF!V3:W114,2,0),\"Centro Gestor\")","v":"ALCALDÍA TLALPAN"}]
[]
[null,"Planeación Estratégica Marco"]
[null,"Misión ","Ser un gobierno transparente y honesto con responsabilidad y rendición de cuentas, incluyente desde la diversidad en la construcción y rescate de nuestra identidad, con una participación ciudadana en las acciones y programas de gobierno, cercano a la gente y efectivo en la atención de los servicios urbanos y necesidades de  la comunidad, con efectividad y eficiencia en sus acciones y programas, con inclusión, equidad y bienestar; sustentable en nuestro entorno y cuidado de la riqueza de los recursos naturales de la Alcaldía Tlalpan."]
[null,"Diagnóstico General","La Alcaldía de Tlalpan es la demarcación más extensa de la Ciudad de México, su territorio es de 312 km2, de los cuales el 84 % es considerado suelo de conservación. De acuerdo con el Instituto Nacional de Estadística y Geografía (INEGI, 2015) en ella habitan 677,104 personas, de las cuales 355,979 son mujeres (53 %) y 321,125 son hombres (47 %); el 21 % de la población total tiene entre 0 y 14 años, 70 % tiene entre 15 y 64 años y 9 % tiene 65 y más. \nEl 1.9 % de la población de 5 años y más habla alguna lengua indígena; 25,862 personas tienen algún tipo de discapacidad (lo que representa el 6 %); del total de los habitantes de la demarcación, el 24 % no está afiliada a ninguna insitución pública de salud y el 10.5 % tiene al menos una carencia alimentaria (INEGI, 2015).\nEn Tlalpan existen 190,591 viviendas, de las cuales el 81.34 % son casas, mientras que el 15.44 % son departamentos en edificio. Sigue habiendo carencias en cuanto a la estructura de las viviendas; de cada 100 viviendas una tiene piso de tierra y 9 de cada 100 tiene techo de lámina, cartón, palma, madera o paja, acentuándose esto en las zonas de los pueblos de la demarcación. \nEn Tlalpan habitan 90,231 niñas y niños de 6 a 14 años, de los cuales el 5.75 % no saben leer y escribir, lo cual es un indicativo del rezago educativo. \nEn 2016 el Consejo de Evaluación del Desarrollo Social de la Ciudad de México (EVALÚA) dio a conocer el último Índice de Desarrollo Social (IDS) de la Ciudad de México, lo que ubicó a Tlalpan como una demarcación con bajo IDS, sólo por encima de Xochimilco, Tláhuac y Milpa Alta, teniendo los índices más bajos en los rubros de calidad de espacio de la vivienda, acceso a la salud, seguridad social y adecuación sanitaria. \nLa población económicamente activa de Tlalpan es de 307,257 personas, de las cuales el 37.91 % se dedica al comercio y a servicios, 44.49 % son profesionistas, 0.72 % se dedican a las actividades agropecuarias y 15.09 % son trabajadores artesanales, conductores de transporte y operadores de maquinaria industrial.                                                                                                                                                                                                                                                                                                                                   \nDe acuerdo con el \"Informe de pobreza y evaluación 2020. Ciudad de México\" realizado por el  Consejo Nacional de Evaluación de la Política de Desarrollo Social (Coneval), Tlalpan en 2015 contaba con 217,122 personas en sitación de pobreza, es decir, 30,487 más respecto a 2010. En materia de pobreza extrema, en 2015 Tlalpan se ubicó dentro de las cinco demarcaciones de la Ciudad de Mèxico con mayor número de personas en esta situación, sólo por debajo de Iztapalapa y Gustavo A. Madero.\nTlalpan es una de las siete demarcaciones con área rural, en su territorio se encuentran 9 áreas naturales protegidas por el Gobierno de la Ciudad de México: Parque Nacional Fuentes Brotantes, Los Encinos, Cumbres del Ajusco, Chichinautzin, Ecoguardas, Bosque de Tlalpan, Parque Ecológico de la Ciudad de México, Reserva Ecológica Comunitaria San Miguel Topilejo y Reserva Ecológica Comunitaria San Miguel Ajusco. Este territorio es rico en recursos naturales, los cuales son vitales para la subsistencia y viabilidad de la Ciudad de México, sin embargo la sobre explotación de los acuíferos profundos y la deforestación ha ocasionado desequilibrios ecológicos. \nDe acuerdo con las cifras dadas a conocer por la Secretaría de Seguridad Ciudadana de la Ciudad de México (SSC), Tlalpan se ubica en la séptima posición de índice delictivo del total de alcaldías. En el último año se registró una disminución de más del 14 % respecto a los delitos de alto impacto, es importante destacar que el 50 % de los delitos se concentra en el robo de vehículos.  \n"]
[null,"Visión ","Garantizar los derechos de la ciudadanía y disminuir progresivamente la pobreza, la desigualdad y promover el desarrollo sustentable, así como la preservación del patrimonio cultural tangible e intangible, la identidad y la   representación democrática de los pueblos y barrios originarios, comunidades y colonias asentadas en la demarcación territorial de Tlalpan. "]
[null,"Objetivo Estratégico","Construir una demarcación incluyente, sostenible y sustentable, con un enfoque de igualdad de derechos para atender de manera oportuna, eficiente y eficaz las necesidades que demanda la población, aplicando procesos de mejora continua que contribuyan a elevar la calidad de vida de la ciudadanía. "]
[]
[null,"Programa Presupuestario y su Alineación"]
[null,"Programa Presupuestario",null,null,"U026",null,{"$f":"IFERROR(VLOOKUP(E17,Catálogo_PP´s!B3:C338,2,0),\"Programa\")","v":"APOYOS ECONÓMICOS Y OTRAS AYUDAS SOCIALES"}]
[null,"Objetivo",null,null,"Contribuir a que la población de la Alcaldía Tlalpan, principalmente la de un alto grado de marginalidad, cuente con la atención oportuna a sus necesidades por medio de acciones y de apoyos sociales. "]
[null,"Alineación al Programa de Gobierno 2019- 2024",null,null,"EJE",1,{"$f":"IFERROR(VLOOKUP(F19,'Ejes y subejes_'!A2:D156,4,0),\"Alineación Inexistente\")","v":"Igualdad y Derechos"},null,null,null,null,null,"Alineación al Objetivo del Desarrollo Sostenible",null,10]
[null,null,null,null,"SUB EJE",6,{"$f":"IFERROR(VLOOKUP(VALUE(F19&F20),'Ejes y subejes_'!B3:D139,3,0),\"Alineación Inexistente\")","v":"Derecho a la igualdad e inclusión"},null,null,null,null,null,null,null,{"$f":"IFERROR(VLOOKUP(O19,ODS!A3:B19,2,0),\"Alineación Inexistente\")","v":"Reducción de las desigualdades "}]
[null,null,null,null,"SUBSUB EJE",0,{"$f":"IFERROR(VLOOKUP(VALUE(F19&F20&F21),'Ejes y subejes_'!C4:D139,2,0),\"Alineación Inexistente\")","v":"Alineación Inexistente"}]
[null,"Finalidad",2,{"$f":"IFERROR(VLOOKUP(C22,CF!J3:K6,2,0),\"Clasificación Inexistente\")","v":"Desarrollo Social"},null,"Función",6,{"$f":"IFERROR(VLOOKUP(C22&G22,CF!B2:G144,6,0),\"Clasificación Inexistente\")","v":"Protección Social"},null,"Subfunción",8,{"$f":"IFERROR(VLOOKUP(C22&G22&K22,CF!B2:G144,6,0),\"Clasificación Inexistente\")","v":"Otros Grupos Vulnerables"},null,"Actividad Institucional","244",{"$f":"IFERROR(VLOOKUP(O22,CF!P3:Q236,2,0),\"Actividad Inexistente\")","v":"APOYOS Y SERVICIOS SOCIALES"}]
[]
[null,"Planeación Operativa"]
[null,"Problema Definido",null,null,"La población que vive en zonas de muy bajo y bajo Índice de Desarrollo Social, al enfrentarse a sucesos de manera temporal, que vulneran la integridad física y patrimonio de la población,  derivados de fenómenos naturales, pandemias,  escases de recursos y servicios no cuentan con recurso económicos que les permitan cubrir gastos emergentes; así como, personas con discapacidad permanente carecen de ingresos que les permitan cubrir sus necesidades básicas y deportistas destacados que requieren ayudas económicas para su entrenamiento y gastos. "]
[null,"Población Objetivo o de Enfoque",null,null,"Habitantes que residen en la demarcación de Tlalpan en zonas de muy bajo y bajo índice de Desarrollo Social."]
[null,"Objetivos Operativos",null,null,"1.-Brindar 1,000 apoyos económicos a personas con discapacidad permanente que vivan en la Alcaldía Tlalpan y 10 facilitadores que apoyan en el proceso de registro; Talleres sobre derechos de las personas con discapacidad, lenguaje incluyente, lengua de señas mexicana y sistema de lecto-escritura braille; Capacitación para personas cuidadoras; Talleres a las personas servidoras públicos en materia de discapacidad, lenguaje incluyente y lengua de señas mexicana; Proyectos de inclusión económica para personas con discapacidad\n2.-Apoyos económicos a deportistas destacados y prospectos deportivos  2022; Ayudas económicas para cubrir gastos de participación en eventos deportivos  2022: XVII Carrera Tlalpense 10 km.  2022; XV Circuito Tlalpense de Pista y Campo 2022.\n3.- Apoyos de emergencia social a personas con situación de vulnerabiliad.\n4.-Apoyo alimentario a las familias de Tlalpan por una emergencia sanitaria o desastre natural.\n5.- Apoyos de emergencia por desatres naturales a las familias afectadas en sus bienes.\n6.- Concientizar sobre los procesos de discriminación a la población LGBTTTI.\n7.- Apoyo de la economía familiar en temporada invernal. (Económico y/o en espacie cobijas y chamarras) previa selección de beneficiarios."]
[null,"Valor Público Generado",null,null,"Los habitantes son atendidos oportunamente de acuerdo a sus necesidades inmediatas, a través de una selección de los beneficiarios que recibiran el apoyo."]
[]
[null,"Plan de Acción del Programa Presupuestario"]
[null,"Meta Física Proyectada","Definición de la Meta ",null,null,null,null,"Indicador de la Meta",null,null,null,"Unidad de Medida ","Medios de Verificación"]
[]
[null,1,"Los habitantes de las zonas mayor grado de marginalidad, reducen su vulnerabilidad a través de apoyos económicos y en especie.",null,null,null,null,"(Número de personas que asistieron a Talleres y/o recibieron capacitación en materia de discapacidad, lenguaje incluyente y lenguaje de señas/ Número de personas programadas para Talleres y/o capacitación en materia de discapacidad, lenguaje incluyente y lenguaje de señas)*.15 +(Número de deportistas destacados y prospectos en eventos deportivos que recibieron apoyos o ayudas económicas/ Número de deportistas destacados y prospectos en eventos deportivos programados para recibir apoyos o ayudas económicas)*.10 (Apoyos de emergencia social a personas con situación de vulnerabilidad entregados/ Apoyos de emergencia social a personas con situación de vulnerabilidad solicitados)*.15+(Apoyo alimentario a las familias de Tlalpan por una emergencia sanitaria o desastre natural entregado/ Apoyo alimentario a las familias de Tlalpan por una emergencia sanitaria o desastre natural solicitado)*.15+(Apoyos de emergencia por desastres naturales a las familias de Tlalpan que sean afectadas en sus bienes entregados/ Apoyos de emergencia por desastres naturales a las familias de Tlalpan que sean afectadas en sus bienes solicitados)*.15+(Número de actividades realizadas para concientizar en los procesos de discriminación a la población LGBTTTIQA/Total de actividades para concientizar en los procesos de discriminación a la población LGBTTTIQA programadas)*.15 +(Número de beneficiarios que recibieron el Apoyo en temporada invernal/Número de beneficiarios de Apoyo en temporada invernal programados)*.15",null,null,null,"Porcentaje","Listas de beneficiarios, ordenes de pago entregadas, las cuales estarán disponibles para consulta en la dirección de atención a grupos prioritarios, ubicada en Plaza de la constitución, interior parque Juana de Asbaje, C. P. 14000, alcaldía Tlalpan. Dirección de Protección Civil ubicada en calle 12 Oriente s/n esq. Benito Juárez C. P. 14050 Col. Toriello Guerra."]
[null,"1er Trimestre Meta Programada ",null,null,null,"2do Trimestre Meta Programada ",null,null,null,"3er Trimestre Meta Programada ",null,null,null,"4to Trimestre Meta Programada "]
[null,0.25,null,null,null,0.5,null,null,null,0.75,null,null,null,1]
[null,"Meta Proyectada a Mediano y Largo Plazo",null,null,null,null,null,null,null,"Valor Público previsto a mediano y largo plazo producto de la intervención gubernamental"]
[null,"Proporcionar apoyos a través de acciones que mejoren las condiciones de la población en situación de vulnerabilidad, durante el ejercicio 2022\n",null,null,null,null,null,null,null,"Eficienta la ayuda a los  habitantes y son oportunamente atendidosde acuerdo a sus necesidades inmediatas."]
[null,"Número de Acciones a Desarrollar",null,null,null,null,null,null,null,"7 Acciones"]
[null,"Acción 1",null,null,null,null,null,null,null,"Responsable(s)"]
[null,"Brindar 1,000 apoyos económicos a personas con discapacidad permanente que vivan en la Alcaldía Tlalpan y 10 facilitadores que apoyan en el proceso de registro. 2.- Brindar talleres sobre derechos de las personas con discapacidad, lenguaje incluyente, lengua de señas mexicana y sistema de lecto-escritura braille. 3.- Dar 5 sesiones de capacitación para personas cuidadoras. 4.- Brindar talleres a las personas servidoras públicos en materia de discapacidad, lenguaje incluyente y lengua de señas mexicana.  5.- Promover proyectos de inclusión económica para personas con discapacidad",null,null,null,null,null,null,null,"Nombre (s)","Miriam Jaqueline Villaruel Ortega"]
[null,null,null,null,null,null,null,null,null,"Cargo","J.U.D. de Atención a Personas con Discapacidad"]
[1,"Acción 2",null,null,null,null,null,null,null,"Responsable(s)"]
[null,"Apoyos económicos a deportistas destacados y prospectos deportivos  2022; Ayudas económicas para cubrir gastos de participación en eventos deportivos  2022: XVII Carrera Tlalpense 10 km.  2022; XV Circuito Tlalpense de Pista y Campo 2022",null,null,null,null,null,null,null,"Nombre (s)","Lic. Rafael Gloria Soria"]
[null,null,null,null,null,null,null,null,null,"Cargo","Coordinador de Desarrollo de Actividades Deportivas"]
[null,"Acción 3",null,null,null,null,null,null,null,"Responsable(s)"]
[null,"Apoyos de emergencia social a personas con situacion de vulnerabiliad en la Alcaldía Tlalpan",null,null,null,null,null,null,null,"Nombre (s)","Edgar Rodolfo Bautista Jimenéz"]
[null,null,null,null,null,null,null,null,null,"Cargo","Director General de Desarrollo Social"]
[1,"Acción 4",null,null,null,null,null,null,null,"Responsable(s)"]
[null,"Apoyo alimentario a las familias de Tlalpan por una emergencia sanitaria o desastre natural",null,null,null,null,null,null,null,"Nombre (s)","Edgar Rodolfo Bautista Jimenéz"]
[null,null,null,null,null,null,null,null,null,"Cargo","Director General de Desarrollo Social"]
[1,"Acción 5",null,null,null,null,null,null,null,"Responsable(s)"]
[null,"Apoyos de emergencia por desatres naturales a las familias de Tlalpan que sean afectadas en sus bienes. ",null,null,null,null,null,null,null,"Nombre (s)","Edgar Rodolfo Bautista Jimenéz"]
[null,null,null,null,null,null,null,null,null,"Cargo","Director General de Desarrollo Social"]
[1,"Acción 6",null,null,null,null,null,null,null,"Responsable(s)"]
[null," Concientizar sobre los procesos de discriminación a la población LGBTTTIQA.",null,null,null,null,null,null,null,"Nombre (s)","Andrés Caballero Hernández"]
[null,null,null,null,null,null,null,null,null,"Cargo","J.U.D. de Atención a la comunidad LGBTTTI"]
[1,"Acción 7",null,null,null,null,null,null,null,"Responsable(s)"]
[null,"Reparto de cobijas y chamarras a personas en situación de vulnerabilidad en temporada invernal",null,null,null,null,null,null,null,"Nombre (s)","Diego Joacyr Gallegos Romero"]
[null,null,null,null,null,null,null,null,null,"Cargo","Director de Protección Civil"]
[1,"Acción 7",null,null,null,null,null,null,null,"Responsable(s)"]
[null,null,null,null,null,null,null,null,null,"Nombre (s)"]
[null,null,null,null,null,null,null,null,null,"Cargo"]
[1,"Acción 8",null,null,null,null,null,null,null,"Responsable(s)"]
[null,null,null,null,null,null,null,null,null,"Nombre (s)"]
[null,null,null,null,null,null,null,null,null,"Cargo"]
[1,"Acción 9",null,null,null,null,null,null,null,"Responsable(s)"]
[null,null,null,null,null,null,null,null,null,"Nombre (s)"]
[null,null,null,null,null,null,null,null,null,"Cargo"]
[null,"Acción 10",null,null,null,null,null,null,null,"Responsable(s)"]
[null,null,null,null,null,null,null,null,null,"Nombre (s)"]
[null,null,null,null,null,null,null,null,null,"Cargo"]
[null,"Acción 11",null,null,null,null,null,null,null,"Responsable(s)"]
[null,null,null,null,null,null,null,null,null,"Nombre (s)"]
[null,null,null,null,null,null,null,null,null,"Cargo"]
[null,"Acción 12",null,null,null,null,null,null,null,"Responsable(s)"]
[null,null,null,null,null,null,null,null,null,"Nombre (s)"]
[null,null,null,null,null,null,null,null,null,"Cargo"]
[null,"Acción 13",null,null,null,null,null,null,null,"Responsable(s)"]
[null,null,null,null,null,null,null,null,null,"Nombre (s)"]
[null,null,null,null,null,null,null,null,null,"Cargo"]
[null,"Acción 14",null,null,null,null,null,null,null,"Responsable(s)"]
[null,null,null,null,null,null,null,null,null,"Nombre (s)"]
[null,null,null,null,null,null,null,null,null,"Cargo"]
[null,"Acción 15",null,null,null,null,null,null,null,"Responsable(s)"]
[null,null,null,null,null,null,null,null,null,"Nombre (s)"]
[null,null,null,null,null,null,null,null,null,"Cargo"]
[null,"Acción 16",null,null,null,null,null,null,null,"Responsable(s)"]
[null,null,null,null,null,null,null,null,null,"Nombre (s)"]
[null,null,null,null,null,null,null,null,null,"Cargo"]
[null,"Acción 17",null,null,null,null,null,null,null,"Responsable(s)"]
[null,null,null,null,null,null,null,null,null,"Nombre (s)"]
[null,null,null,null,null,null,null,null,null,"Cargo"]
[null,"Acción 18",null,null,null,null,null,null,null,"Responsable(s)"]
[null,null,null,null,null,null,null,null,null,"Nombre (s)"]
[null,null,null,null,null,null,null,null,null,"Cargo"]
[null,"Acción 19",null,null,null,null,null,null,null,"Responsable(s)"]
[null,null,null,null,null,null,null,null,null,"Nombre (s)"]
[null,null,null,null,null,null,null,null,null,"Cargo"]
[null,"Acción 20",null,null,null,null,null,null,null,"Responsable(s)"]
[null,null,null,null,null,null,null,null,null,"Nombre (s)"]
[null,null,null,null,null,null,null,null,null,"Cargo"]
[null,"Acción 21",null,null,null,null,null,null,null,"Responsable(s)"]
[null,null,null,null,null,null,null,null,null,"Nombre (s)"]
[null,null,null,null,null,null,null,null,null,"Cargo"]
[null,"Acción 22",null,null,null,null,null,null,null,"Responsable(s)"]
[null,null,null,null,null,null,null,null,null,"Nombre (s)"]
[null,null,null,null,null,null,null,null,null,"Cargo"]
[null,"Acción 23",null,null,null,null,null,null,null,"Responsable(s)"]
[null,null,null,null,null,null,null,null,null,"Nombre (s)"]
[null,null,null,null,null,null,null,null,null,"Cargo"]
[null,"Acción 24",null,null,null,null,null,null,null,"Responsable(s)"]
[null,null,null,null,null,null,null,null,null,"Nombre (s)"]
[null,null,null,null,null,null,null,null,null,"Cargo"]
[null,"Acción 25",null,null,null,null,null,null,null,"Responsable(s)"]
[null,null,null,null,null,null,null,null,null,"Nombre (s)"]
[null,null,null,null,null,null,null,null,null,"Cargo"]
[]
[null,null,"ELABORÓ",null,null,null,null,null,null,null,null,"AUTORIZÓ"]
[]
[]
[null,null,"NOMBRE:  C. Gerardo Nieto García",null,null,null,null,null,null,null,null,"NOMBRE: Lic. Martín Vargas Domínguez"]
[null,null,"CARGO: Director de Recursos Financieros y Presupuestales",null,null,null,null,null,null,null,null,"CARGO: Director General de Administración "]

{"sheet":"Catálogo_PP´s","index":1,"n_rows":338,"n_cols":3,"rows_kept":338,"cut":false,"hidden":true,"merged":[]}
[]
[null,"Programa \nPresupuestario","Denominación"]
[null,"0000","TRANSFERENCIAS A ÓRGANOS AUTÓNOMOS"]
[null,"B001","PRODUCCIÓN Y COMERCIALIZACIÓN DE MEZCLAS ASFÁLTICAS"]
[null,"D001","SERVICIO DE LA DEUDA"]
[null,"D002","DEVOLUCIÓN DE INGRESOS PERCIBIDOS INDEBIDAMENTE"]
[null,"E001","ACCESO A LA JUSTICIA PARA LAS MUJERES Y NIÑAS VÍCTIMAS DE VIOLENCIA Y DISCRIMINACIÓN DE GÉNERO"]
[null,"E002","ACCIONES DE FORTALECIMIENTO PARA LA PROCURACIÓN DE JUSTICIA"]
[null,"E003","ACCIONES DE OBRAS Y SERVICIOS PARA LA RECUPERACIÓN, PROMOCIÓN Y PROTECCIÓN DEL CENTRO HISTÓRICO"]
[null,"E004","PREVENCIÓN DE CÁNCER DE MAMA Y CERVICOUTERINO"]
[null,"E005","ACCIONES PARA MEJORAR LA GOBERNANZA DIGITAL"]
[null,"E006","ACCIONES PARA PROYECTOS AMBIENTALES"]
[null,"E007","PREVENCIÓN DEL DELITO"]
[null,"E011","FORTALECIMIENTO EN MATERIA JURÍDICA"]
[null,"E012","ATENCIÓN MEDICA"]
[null,"E014","ATENCIÓN A PERSONAS ADULTAS PRIVADAS DE SU LIBERTAD Y EN PROCEDIMIENTO LEGAL"]
[null,"E016","ATENCIÓN INTEGRAL Y TRATAMIENTO DE ADICCIONES"]
[null,"E017","ATENCIÓN MÉDICA A PERSONAS PRIVADAS DE SU LIBERTAD Y EN PROCEDIMIENTO LEGAL"]
[null,"E018","ATENCIÓN VETERINARIA"]
[null,"E019"," PREVENCIÓN Y ATENCIÓN  DE LA VIOLENCIA CONTRA LAS MUJERES"]
[null,"E020","CENTROS DE ATENCIÓN LUNAS"]
[null,"E021","SEGURIDAD CIUDADANA EN CUADRANTES"]
[null,"E022","CUIDADO Y CONSERVACIÓN DE LOS BOSQUES, ÁREAS  DE VALOR AMBIENTAL Y SUELO DE CONSERVACIÓN"]
[null,"E025","FORMACIÓN CONTINÚA PARA POLICÍAS PREVENTIVOS"]
[null,"E026","FORMACIÓN DE ASPIRANTES A POLICÍAS"]
[null,"E027","FORTALECIMIENTO A LA EDUCACIÓN COMPLEMENTARIA"]
[null,"E028","OPERACIÓN DEL MUSEO DE ARTE POPULAR"]
[null,"E031","PRESTACIÓN DE SERVICIOS PARA LOS TRAMITES DE IDENTIDAD Y PROPIEDAD"]
[null,"E034","MANTENIMIENTO DE ESPACIOS PÚBLICOS"]
[null,"E038","MEDIDAS DE PREVENCIÓN Y PROTECCIÓN DE LOS DEFENSORES DE DERECHOS HUMANOS Y PERIODISTAS"]
[null,"E039","MEJORAS A LA INFRAESTRUCTURA PARA MOVILIDAD NO MOTORIZADA Y PEATONAL"]
[null,"E042","OPERACIÓN Y MANTENIMIENTO DEL TRANSPORTE PÚBLICO MASIVO, CONCESIONADO Y ALTERNO"]
[null,"E043","POLICÍA AUXILIAR"]
[null,"E044","PRESTACIÓN DE SERVICIOS PARA LAS CAJAS DE PREVISIÓN"]
[null,"E046","PREVENCIÓN Y ATENCIÓN DE LA DISCRIMINACIÓN"]
[null,"E047","PREVENCIÓN Y TRATAMIENTO DE LAS ADICCIONES"]
[null,"E048","PRODUCCIÓN DE CONTENIDO CULTURAL Y ARTÍSTICO"]
[null,"E049","PRODUCCIÓN Y SERVICIOS FÍLMICOS Y CINEMATOGRÁFICOS"]
[null,"E053","PROTECCIÓN CIUDADANA ORDEN PÚBLICO Y PAZ SOCIAL"]
[null,"E054","PROTECCIÓN Y VIGILANCIA DEL SECTOR PÚBLICO Y PRIVADO"]
[null,"E057","REINSERCIÓN POS PENITENCIARIA"]
[null,"E059","REPRESENTACIÓN Y DEFENSA DEL GOBIERNO EN MATERIA FISCAL Y HACENDARIA"]
[null,"E061","SALUD MATERNA, SEXUAL Y REPRODUCTIVA"]
[null,"E063","SEGURIDAD PROCESAL"]
[null,"E065","SERVICIO INTEGRAL DE OPERACIÓN Y ATENCIÓN A EMERGENCIAS"]
[null,"E066","SERVICIOS DE SALUD DEL PRIMER NIVEL"]
[null,"E067","OPERACIÓN DEL  SISTEMA PARA LA SEGURIDAD DE LAS CONSTRUCCIONES DE LA CIUDAD DE MÉXICO"]
[null,"E068","PREVENCIÓN Y ATENCIÓN A MENORES INFRACTORES"]
[null,"E070","CONSERVACIÓN Y MANTENIMIENTO MENOR DE INMUEBLES Y EQUIPOS"]
[null,"E072","PRESERVACIÓN Y CUIDADO DEL PATRIMONIO MATERIAL E INMATERIAL"]
[null,"E073","OPERACIÓN DEL MUSEO DEL ESTANQUILLO"]
[null,"E075","GESTIÓN Y OPERACIÓN DEL MUSEO DE HISTORIA NATURAL Y CULTURA AMBIENTAL"]
[null,"E076","SERVICIOS INTEGRALES A JUBILADOS Y PENSIONADOS"]
[null,"E077","SERVICIOS DE IMPRENTA DE LA CIUDAD DE MÉXICO"]
[null,"E078","ATENCIÓN MÉDICA DE URGENCIAS"]
[null,"E079","PROMOCIÓN Y OPERACIÓN INTEGRAL DE LA ORQUESTA FILARMÓNICA DE LA CIUDAD DE MÉXICO"]
[null,"E080","PROFESIONALIZACIÓN DE SERVIDORES PÚBLICOS E INVESTIGACIÓN APLICADA PARA LA BUENA ADMINISTRACIÓN"]
[null,"E081","SERVICIOS INTEGRALES DE ASISTENCIA SOCIAL"]
[null,"E082","REGULARIZACIÓN DE LA TENENCIA DE LA TIERRA"]
[null,"E083","VALUACIÓN DE LOS BIENES INMUEBLES"]
[null,"E084","SERVICIOS INTEGRALES METROPOLITANOS"]
[null,"E086","FORTALECIMIENTO A LA EDUCACIÓN MEDIA SUPERIOR"]
[null,"E087","FORTALECIMIENTO A LA EDUCACIÓN BÁSICA"]
[null,"E088","OPERACIÓN Y MANTENIMIENTO DE LA RED DE TRANSPORTE DE PASAJEROS (RTP)"]
[null,"E090","ACCIONES PARA EL BIENESTAR ANIMAL"]
[null,"E091","OPERACIÓN Y MANTENIMIENTO DE LA CENTRAL DE ABASTOS"]
[null,"E092","OPERACIÓN Y MANTENIMIENTO DE MERCADOS PÚBLICOS"]
[null,"E093","MANEJO INTEGRAL DE RESIDUOS SÓLIDOS URBANOS"]
[null,"E094","FORTALECIMIENTO PARA EL ACCESO A LA EDUCACIÓN SUPERIOR"]
[null,"E095","FORTALECIMIENTO PARA EL ACCESO A POSGRADOS E INVESTIGACIÓN"]
[null,"E097","ACCIONES DE BÚSQUEDA, LOCALIZACIÓN E IDENTIFICACIÓN DE PERSONAS"]
[null,"E098","SUPERVISIÓN Y PROMOCIÓN DE LOS DERECHOS LABORALES"]
[null,"E099","ACCIONES JURÍDICAS EN MATERIA LABORAL"]
[null,"E100","CAPACITACIÓN A LA POBLACIÓN OCUPADA Y DESOCUPADA DE LA CIUDAD DE MÉXICO"]
[null,"E101","ATENCIÓN INTEGRAL EN ESPACIOS DE REFUGIO A MUJERES, HIJAS E HIJOS EN SITUACIÓN DE VIOLENCIA EXTREMA Y PROMOVER EL EJERCICIO DE SUS DERECHOS"]
[null,"E102","PROFESIONALIZACIÓN DE SERVIDORES PÚBLICOS DE LA SALUD"]
[null,"E103","ACCIONES DE GABINETE DE SEGURIDAD"]
[null,"E104","PROFESIONALIZACIÓN  Y EVALUACIÓN DEL SERVIDOR PÚBLICO PARA EL BUEN GOBIERNO"]
[null,"E107","CONSERVACIÓN Y OPERACIÓN DE ZOOLÓGICOS"]
[null,"E108","CIUDAD SEGURA Y AMIGABLE PARA LAS MUJERES Y NIÑAS"]
[null,"E109","APOYO INTEGRAL A VICTIMAS"]
[null,"E110","ATENCIÓN TELEFÓNICA SOBRE SERVICIOS DE NO EMERGENCIA"]
[null,"E111","ASESORAMIENTO EN MATERIA JURÍDICA"]
[null,"E112","OPERACIÓN Y PROMOCIÓN DE MOVILIDAD SUSTENTABLE"]
[null,"E113","GESTIÓN INTEGRAL DE RIESGOS"]
[null,"E114","ATENCIÓN Y SEGUIMIENTO ESPECIAL A GRUPOS VULNERABLES VÍCTIMAS DE LA VIOLENCIA"]
[null,"E115","ATENCIÓN Y PREVENCIÓN DE LA VIOLENCIA CONTRA LAS MUJERES"]
[null,"E116","PROGRAMA PILARES"]
[null,"E117","MANTENIMIENTO DE ESPACIOS PÚBLICOS"]
[null,"E118","ACCIONES POLICIALES Y PREVENCIÓN DEL DELITO"]
[null,"E119","FORTALECIMIENTO EN MATERIA JURÍDICA"]
[null,"E120","ATENCIÓN VETERINARIA"]
[null,"E122","REFORESTACIÓN EN SUELO DE CONSERVACIÓN"]
[null,"E123","MANEJO INTEGRAL DE RESIDUOS SÓLIDOS URBANOS"]
[null,"E124","PROGRAMA INTEGRAL DE MOVILIDAD INTELIGENTE"]
[null,"E125","ACCIONES PARA PROYECTOS AMBIENTALES"]
[null,"E126","PRODUCCIÓN DE CONTENIDO CULTURAL Y ARTÍSTICO"]
[null,"E127","PREVENCIÓN Y CONTROL DE ENFERMEDADES"]
[null,"E128","MANTENIMIENTO Y REHABILITACIÓN DE ÁREAS VERDES"]
[null,"E129","PROVISIÓN EMERGENTE DE AGUA POTABLE"]
[null,"E130","OPERACIÓN DE PANTEONES PÚBLICOS"]
[null,"E131","RESCATE, REHABILITACIÓN Y MANTENIMIENTO DE ESPACIOS DEPORTIVOS"]
[null,"E134","ATENCIÓN INTEGRAL PARA EL DESARROLLO INFANTIL"]
[null,"E136","OPERACIÓN DE VIVEROS"]
[null,"E137","OPERACIÓN DE CENTROS DE DESARROLLO INFANTIL"]
[null,"E138","ATENCIÓN Y PREVENCIÓN DE LA VIOLENCIA INTRAFAMILIAR"]
[null,"E142","APOYO INTEGRAL PARA PERSONAS CON DISCAPACIDAD"]
[null,"E144","APOYO INTEGRAL PARA MUJERES EMBARAZADAS Y MADRES EN SITUACIÓN DE VULNERABILIDAD"]
[null,"E145","APRENDE Y CREA DIFERENTE"]
[null,"E146","PROTECCIÓN Y DEFENSA DE NIÑAS, NIÑOS Y ADOLECENTES"]
[null,"E147","ATENCIÓN SOCIAL INMEDIATA A POBLACIONES PRIORITARIAS (ASIPP)"]
[null,"E148","ENTRE LA CALLE Y EL HOGAR"]
[null,"E150","FOMENTO Y MEJORAMIENTO DE LOS MERCADOS PÚBLICOS DE LA CIUDAD DE MÉXICO"]
[null,"E152","PROMOCIÓN DE AUTOCUIDADO Y ENVEGECIMIENTO DIGNO DE LAS PERSONAS MAYORES Y GRUPOS DE ATENCIÓN PRIORITARIA"]
[null,"E153","PROGRAMA PARA LA FORMACION DE PROFESIONALES DE LA SALUD"]
[null,"E154","Acceso a la justicia ambiental, urbana y de protección y bienestar animal"]
[null,"F001","ALIANZA PARA LA PRESERVACIÓN DEL PATRIMONIO CULTURAL DE LA CIUDAD DE MÉXICO"]
[null,"F003","CONVENIOS EN MATERIA DE EDUCACIÓN, INNOVACIÓN, CIENCIA Y TECNOLOGÍA"]
[null,"F005","DESARROLLO Y PROMOCIÓN DE PRODUCTOS Y PROYECTOS TURÍSTICOS SUSTENTABLES"]
[null,"F006","FINANCIAMIENTO A MICROCRÉDITOS PARA EL AUTOEMPLEO, ATENCIÓN A LAS MEDIANAS Y PEQUEÑAS EMPRESAS Y COMERCIALIZACIÓN DE PRODUCTOS RURALES"]
[null,"F008","PROMOCIÓN DE LA INVERSIÓN, EL DESARROLLO, COMPETITIVIDAD E INNOVACIÓN DE LOS SECTORES INDUSTRIAL, COMERCIAL Y DE SERVICIOS"]
[null,"F012","PROMOCIÓN Y FOMENTO DE LOS DERECHOS HUMANOS DE LA ADOLESCENCIA Y LA INFANCIA"]
[null,"F013","OPERACIÓN DE CENTROS CULTURALES, MUSEOS, TEATROS Y ESPACIOS PARA EL ARTE Y CULTURA"]
[null,"F014","PROMOCIÓN Y FOMENTO DE LAS SOCIEDADES COOPERATIVAS"]
[null,"F016","PROMOCIÓN Y FORTALECIMIENTO DE LA PARTICIPACIÓN CIUDADANA"]
[null,"F017","PROGRAMA DE CULTURA FÍSICA Y EVENTOS DEPORTIVOS"]
[null,"F018","VINCULACIÓN Y FORTALECIMIENTO DE LA CULTURA Y LAS ARTES"]
[null,"F021","DIVULGACIÓN DE CONOCIMIENTO CIENTÍFICO TECNOLÓGICO Y DE INNOVACIÓN"]
[null,"F022","DESARROLLO, PROMOCIÓN Y POSICIONAMIENTO DE LA CIUDAD DE MÉXICO Y SU MARCA CDMX"]
[null,"F023","PROMOCIÓN Y DIFUSIÓN DE ACCIONES DE GOBIERNO"]
[null,"F024","ACCIONES DE EDUCACIÓN, PREVENCIÓN Y ATENCIÓN DE POLÍTICAS DE SEGURIDAD VIAL"]
[null,"F026","FOMENTO SANITARIO EN ESTABLECIMIENTOS, PRODUCTOS, ACTIVIDADES, SERVICIOS Y PERSONAS"]
[null,"F027","PROMOCIÓN Y FORTALECIMIENTO DE LA PARTICIPACIÓN CIUDADANA"]
[null,"F029","FINANCIAMIENTO A LAS MIPYMES"]
[null,"F031","ORGANIZACIÓN DE EVENTOS CÍVICOS, FESTIVIDADES PATRIAS Y TRADICIONES"]
[null,"F032","PROMOCIÓN DE LA CULTURA FÍSICA Y DEPORTIVA"]
[null,"F033","PROYECTOS DE DESARROLLO Y  FOMENTO AGROPECUARIO"]
[null,"F034","FORTALECIMIENTO DE COMPETENCIAS EN ENERGÍA SOLAR"]
[null,"G002","DISEÑO URBANO Y REGULACIÓN DE LOS ESPACIOS PÚBLICOS"]
[null,"G005","REGULACIÓN DE CORREDORES DE TRANSPORTE PÚBLICO Y CENTROS DE TRANSFERENCIA MODAL"]
[null,"G009","DICTAMINACIÓN DE LAS ESTRUCTURAS ORGANIZACIONALES"]
[null,"G010"," RECUPERACIÓN ÓPTIMA DE LOS CRÉDITOS"]
[null,"G011","ACCIONES PARA EL CUMPLIMIENTO  DE LAS DISPOSICIONES MERCANTILES, JURÍDICAS Y ADMINISTRATIVAS"]
[null,"G013","INSPECCIÓN Y VIGILANCIA MEDIOAMBIENTAL"]
[null,"G014","REGULACIÓN Y REGISTRO DE ESTABLECIMIENTOS MERCANTILES EN MATERIA ECONÓMICA"]
[null,"G016","CONTROL Y REGULACIÓN SANITARIA"]
[null,"G017","VIGILANCIA SANITARIA EN ESTABLECIMIENTOS, PRODUCTOS, ACTIVIDADES, SERVICIOS Y PERSONAS"]
[null,"G018","GESTIÓN Y REGULACIÓN DE SISTEMAS DE MOVILIDAD Y TRANSPORTE, Y ESTACIONAMIENTOS"]
[null,"G019","CONTROL, ORDENAMIENTO Y SISTEMATIZACIÓN DEL TRANSPORTE"]
[null,"G021","VERIFICACIÓN, INSPECCIÓN  Y VIGILANCIA AMBIENTAL"]
[null,"G022","ACCIONES PARA EL CUMPLIMIENTO  DE LAS DISPOSICIONES MERCANTILES, JURÍDICAS Y ADMINISTRATIVAS"]
[null,"G023","PROTECCIÓN Y REGULACIÓN ANIMAL"]
[null,"G072","INVESTIGACIÓN Y SEGUIMIENTO DE DELITOS FINANCIEROS"]
[null,"J001","PAGO DE PENSIONES Y JUBILACIONES"]
[null,"K001","CONSTRUCCIÓN Y MEJORAMIENTO DE LA INFRAESTRUCTURA DE SALUD"]
[null,"K002","CONSTRUCCIÓN Y MEJORAMIENTO DE LA INFRAESTRUCTURA EDUCATIVA"]
[null,"K003","INFRAESTRUCTURA DE AGUA POTABLE, ALCANTARILLADO Y SANEAMIENTO"]
[null,"K004","INFRAESTRUCTURA DE TRANSPORTE PÚBLICO"]
[null,"K005","MEJORAMIENTO Y MANTENIMIENTO DE LA INFRAESTRUCTURA URBANA"]
[null,"K006","MEJORAMIENTO Y MANTENIMIENTO DE LA INFRAESTRUCTURA VIAL"]
[null,"K007","SISTEMA DE TRANSPORTE PÚBLICO CABLEBÚS"]
[null,"K008","AMPLIACIÓN, OPERACIÓN Y MANTENIMIENTO DEL ALUMBRADO PÚBLICO"]
[null,"K010","CONSTRUCCIÓN, MANTENIMIENTO Y AMPLIACIÓN DE EDIFICIOS PÚBLICOS"]
[null,"K012","REHABILITACIÓN, EQUIPAMIENTO Y CONSTRUCCIÓN DE INFRAESTRUCTURA EDUCATIVA"]
[null,"K014","INFRAESTRUCTURA DE AGUA POTABLE, ALCANTARILLADO Y SANEAMIENTO"]
[null,"K015","CONSTRUCCIÓN DE INFRAESTRUCTURA PÚBLICA"]
[null,"K016","REHABILITACIÓN Y MANTENIMIENTO DE INFRAESTRUCTURA PÚBLICA"]
[null,"K017","ACCIONES DE OBRAS Y SERVICIOS PARA LA REGENERACIÓN DE BARRIOS"]
[null,"M001","ACTIVIDADES DE APOYO ADMINISTRATIVO"]
[null,"N001","CUMPLIMIENTO DE LOS PROGRAMAS DE PROTECCIÓN CIVIL"]
[null,"N004","PREVENCIÓN Y COMBATE DE INCENDIOS"]
[null,"O001","ACTIVIDADES DE APOYO A LA FUNCIÓN PÚBLICA Y BUEN GOBIERNO"]
[null,"O002","IMPULSO A LA TRANSPARENCIA Y RENDICIÓN DE CUENTAS"]
[null,"O003","INHIBICIÓN Y SANCIÓN DE LAS PRÁCTICAS DE CORRUPCIÓN"]
[null,"O004","INTEGRACIÓN DE SERVICIOS TECNOLÓGICOS E INFORMÁTICOS"]
[null,"O005","PROMOCIÓN DE LA CULTURA A LEGALIDAD"]
[null,"O006","FISCALIZACIÓN A LA GESTIÓN PÚBLICA"]
[null,"O016","INTEGRACIÓN DE SERVICIOS TECNOLÓGICOS E INFORMÁTICOS"]
[null,"P001","PROMOCIÓN INTEGRAL PARA EL CUMPLIMIENTO DE LOS DERECHOS HUMANOS DE LAS NIÑAS Y MUJERES"]
[null,"P002","PROMOCIÓN INTEGRAL PARA EL CUMPLIMIENTO DE LOS DERECHOS HUMANOS"]
[null,"P003","PLANEACIÓN, SEGUIMIENTO Y EVALUACIÓN A POLÍTICAS PÚBLICAS"]
[null,"P004","PROMOCIÓN INTEGRAL PARA EL CUMPLIMIENTO DE LOS DERECHOS DE LA NIÑEZ Y DE LA ADOLESCENCIA "]
[null,"P005","CALIDAD DEL AIRE"]
[null,"P007","GOBERNABILIDAD Y MEJORAMIENTO DE LOS NIVELES DE VIDA DE LOS HABITANTES DE LA CIUDAD DE MÉXICO"]
[null,"P014","DISEÑO DE LA POLÍTICA DE EGRESOS"]
[null,"P016","DISEÑO E INSTRUMENTACIÓN DE ACCIONES EN MATERIA DE COMPETITIVIDAD, EMPRENDIMIENTO, COMPETENCIA Y POLÍTICA REGULATORIA"]
[null,"P017"," ACCIONES PARA LA TRANSVERSALIZACIÓN DEL ENFOQUE DE DERECHOS HUMANOS"]
[null,"P019","PLANEACIÓN DE LA POLÍTICA DE TURISMO"]
[null,"P020","PLANEACIÓN Y SEGUIMIENTO DE LA POLÍTICA GUBERNAMENTAL"]
[null,"P022","PLANEACIÓN DE POLÍTICAS PÚBLICAS PARA MEJORAR LA ATENCIÓN DE LAS ADICCIONES"]
[null,"P023","PLANEACIÓN Y GESTIÓN DEL ORDENAMIENTO TERRITORIAL Y ASENTAMIENTOS HUMANOS"]
[null,"P025","PLANEACIÓN, ELABORACIÓN Y SEGUIMIENTO DE LA POLÍTICA DE DESARROLLO ECONÓMICO"]
[null,"P026","DISEÑO, COORDINACIÓN Y OPERACIÓN DE LA POLÍTICA FISCAL Y HACENDARIA"]
[null,"P027","POLÍTICAS PARA LA PREVENCIÓN Y COMBATE A LA DISCRIMINACIÓN"]
[null,"P029","EVALUACIÓN DE LA POLÍTICA DE DESARROLLO SOCIAL DE LA CIUDAD DE MÉXICO"]
[null,"P031","PLANEACIÓN, SEGUIMIENTO Y EVALUACIÓN A POLÍTICAS PÚBLICAS PARA EL DESARROLLO DE LAS PERSONAS CON DISCAPACIDAD"]
[null,"P034","PROYECTOS Y SERVICIOS ESTRATÉGICOS PARA BENEFICIO DE LA POBLACIÓN"]
[null,"P036","PLANEACIÓN DE POLÍTICAS PÚBLICAS ENFOCADAS AL DESARROLLO DE LOS PUEBLOS Y BARRIOS ORIGINARIOS Y COMUNIDADES INDÍGENAS RESIDENTES"]
[null,"P041","PLANEACIÓN, ELABORACIÓN,  SEGUIMIENTO  Y EVALUACIÓN DE LAS POLÍTICAS PÚBLICAS Y NORMATIVIDAD EN MATERIA DE DESARROLLO ECONÓMICO, SOCIAL Y AMBIENTAL"]
[null,"P044","ACCIONES PARA LA INTEGRACIÓN DEL TRANSPORTE PÚBLICO"]
[null,"P045"," DISEÑO INTEGRAL DE INFRAESTRUCTURA PEATONAL Y CICLISTA"]
[null,"P046","PLANEACIÓN INTEGRAL DE LAS POLÍTICAS PÚBLICAS DE LA ALCALDÍA"]
[null,"P047","PLANEACIÓN DE LA POLÍTICA DE TURISMO EN LAS ALCALDÍAS"]
[null,"P048","PLANEACIÓN, SEGUIMIENTO Y EVALUACIÓN A POLÍTICAS PÚBLICAS"]
[null,"P049","PLANEACIÓN Y GESTIÓN DEL ORDENAMIENTO TERRITORIAL Y ASENTAMIENTOS HUMANOS"]
[null,"P050","PLANEACIÓN Y GESTIÓN  PARA EL DESARROLLO SOCIAL INTEGRAL E INCLUYENTE"]
[null,"S004","APOYOS PARA EL DESARROLLO INTEGRAL DE LOS JÓVENES"]
[null,"S005","ATENCIÓN PRIORITARIA A PERSONAS EGRESADAS DEL SISTEMA DE JUSTICIA PENAL"]
[null,"S007","CAPACITACIÓN A LA POBLACIÓN OCUPADA Y DESOCUPADA DE LA CIUDAD DE MÉXICO"]
[null,"S008","CIBERESCUELAS EN PILARES"]
[null,"S010","COINVERSIÓN PARA LA INCLUSIÓN Y EL BIENESTAR SOCIAL"]
[null,"S011","COINVERSIÓN PARA IGUALDAD DE LA CIUDAD DE MÉXICO"]
[null,"S012","COLECTIVOS CULTURALES COMUNITARIOS CIUDAD DE MÉXICO"]
[null,"S013","COMEDORES SOCIALES DE LA CIUDAD DE MÉXICO"]
[null,"S014","COMIDA PARA LOS CAI'S"]
[null,"S016","EDUCACIÓN PARA LA AUTONOMÍA ECONÓMICA EN PILARES"]
[null,"S018","ESTÍMULOS ECONÓMICOS A LAS ASOCIACIONES DEPORTIVAS QUE PARTICIPAN EN LA OLIMPIADA, PARALIMPIADA Y NACIONAL JUVENIL"]
[null,"S019","ESTÍMULOS ECONÓMICOS A DEPORTISTAS DESTACADOS REPRESENTATIVOS DE LA CIUDAD DE MÉXICO"]
[null,"S022","FOMENTO AL TRABAJO DIGNO"]
[null,"S023","FOMENTO, CONSTITUCIÓN Y FORTALECIMIENTO DE LAS EMPRESAS SOCIALES Y SOLIDARIAS DE LA CIUDAD DE MÉXICO (FOCOFESS)"]
[null,"S025","LOS JÓVENES UNEN AL BARRIO"]
[null,"S026","MEJOR ESCUELA"]
[null,"S027","MEJORAMIENTO DE LA VIVIENDA"]
[null,"S029","PONTE PILA, DEPORTE COMUNITARIO"]
[null,"S030","PROGRAMA APOYO ECONÓMICO A POLICÍAS Y BOMBEROS PENSIONADOS DE LA CAPREPOL CON DISCAPACIDAD PERMANENTE"]
[null,"S033","PROGRAMA BECAS ESCOLARES PARA NIÑAS Y NIÑOS EN CONDICIONES DE VULNERABILIDAD SOCIAL (MÁS BECAS, MEJOR EDUCACIÓN)"]
[null,"S034","PROGRAMA SISTEMAS DE CAPTACIÓN DE AGUA DE LLUVIA EN VIVIENDAS DE LA CIUDAD DE MÉXICO"]
[null,"S035","PROGRAMA ALIMENTOS ESCOLARES"]
[null,"S036","PROGRAMA ALTEPETL"]
[null,"S037","PROGRAMA ATENCIÓN A PERSONAS CON DISCAPACIDAD EN UNIDADES BÁSICAS DE REHABILITACIÓN"]
[null,"S039","PROGRAMA DE BECAS DEL INSTITUTO DE EDUCACIÓN MEDIA SUPERIOR DE LA CIUDAD DE MÉXICO"]
[null,"S042","PROGRAMA PARA EL FORTALECIMIENTO Y APOYO A LAS COMUNIDADES INDÍGENAS"]
[null,"S047","PROGRAMA MEJORAMIENTO BARRIAL Y COMUNITARIO, TEQUIO BARRIO"]
[null,"S050","PROMOCIÓN DE ACTIVIDADES CULTURALES Y RECREATIVAS"]
[null,"S051","PROMOTORES CULTURALES CIUDAD DE MÉXICO"]
[null,"S053","RESCATE INNOVADOR Y PARTICIPATIVO EN UNIDADES HABITACIONALES"]
[null,"S054","SEGURO DE DESEMPLEO"]
[null,"S055","SEGURO CONTRA ACCIDENTES PERSONALES DE ESCOLARES, \"VA SEGUR@\""]
[null,"S056","APOYO A MUJERES EN SITUACIÓN DE VIOLENCIA DE GÉNERO"]
[null,"S057","TALLERES DE ARTES Y OFICIOS COMUNITARIOS"]
[null,"S061","VIVIENDA  EN CONJUNTO"]
[null,"S064","DESARROLLO INTEGRAL DE LAS PERSONAS CON DISCAPACIDAD"]
[null,"S066","CENTROS PARA EL DESARROLLO INFANTIL"]
[null,"S071","SERVIDORES DE LA CIUDAD (SERCDMX)"]
[null,"S072","ATENCIÓN INTEGRAL AL ADULTO MAYOR"]
[null,"S073","BECA PILARES"]
[null,"S074","PROGRAMA MI BECA PARA EMPEZAR"]
[null,"S076","PROMOTORES DEL DESARROLLO SOCIAL"]
[null,"S079","APOYO A UNIDADES HABITACIONALES"]
[null,"S080","APOYO  A CUIDADORAS  Y  CUIDADORES DE 58 A 64 AÑOS"]
[null,"S081","ALIMENTACIÓN A NIÑAS, NIÑOS Y PERSONAL ADSCRITO A LA JEFATURA DE LOS CENTROS DE DESARROLLO INFANTIL ICENDIS"]
[null,"S082","EMPODERAMIENTO MUJERES AZCAPOTZALCO"]
[null,"S083","INICIATIVAS JUVENILES AZCAPOTZALCO"]
[null,"S084","JUNTOS HAGAMOS DEPORTE"]
[null,"S085","APOYO ECONÓMICO A MÚSICOS DE LA SINFÓNICA DE AZCAPOTZALCO"]
[null,"S092","PONGAMOS  EL  EJEMPLO  CON  DEPORTE  EN  CUAUHTÉMOC"]
[null,"S093","APOYO  ECONÓMICO  PARA  EL  RECONOCIMIENTO  DE  LAS  PERSONAS CUIDADORAS"]
[null,"S095","APOYO ECONÓMICO PARA EL COMBATE AL REZAGO EDUCATIVO DE LAS INFANCIAS INDÍGENAS"]
[null,"S097","APOYO  ECONÓMICO  A PERSONAS  NO ASALARIADAS  QUE  POR  MOTIVO DE SECUELAS DE ENFERMEDADES CRÓNICO DEGENERATIVAS NO TRANSMISIBLES Y/O TERMINALES, ESTÉN IMPOSIBILITADAS DE TRABAJAR Y RESIDAN EN LA ALCALDÍA CUAUHTÉMOC"]
[null,"S098","APOYO  ECONÓMICO A JEFAS DE FAMILIA PARA SU INCLUSIÓN LABORAL"]
[null,"S100","PARTICIPACIÓN, ARTE Y CULTURA INCLUYENTE"]
[null,"S101","APOYO ECONÓMICO PARA LA ATENCIÓN  EMERGENTE EN MATERIA DE SALUD DE LAS PERSONAS TRANS"]
[null,"S102","FACILITADORES CULTURALES Y DEPORTIVOS"]
[null,"S103","AYUDA ECONÓMICA Y BIENESTAR INTEGRAL PARA PERSONAS ADULTAS MAYORES DE 60 A 64 AÑOS QUE RESIDEN EN IZTAPALAPA"]
[null,"S107","MUJERES ESTUDIANDO EN LA ALCALDÍA DE IZTAPALAPA"]
[null,"S109","DIÁLOGOS POR EL BIENESTAR Y LA PAZ EN IZTAPALAPA"]
[null,"S110","SISTEMA PÚBLICO DE CUIDADO, ALCALDÍA DE IZTAPALAPA"]
[null,"S111","IZTAPALAPA LA MÁS DEPORTIVA"]
[null,"S113","EN  COMUNIDAD   LA FAMILIA ES PRIMERO  "]
[null,"S116","APOYO A LA FORMACIÓN ARTÍSTICA DE NIÑAS, NIÑOS, ADOLESCENTES  Y"]
[null,"S117","EL GOBIERNO DE LOS PUEBLOS EN APOYO A UNIVERSITARIOS"]
[null,"S119","ALIMÉNTATE BIEN"]
[null,"S121","PROGRAMA    DE    MEJORAMIENTO    SUSTENTABLE    EN    SUELO    DE CONSERVACIÓN DE MILPA ALTA"]
[null,"S122","PROGRAMA  INTEGRAL  DE  APOYO  A  LOS  PRODUCTORES  DE  NOPAL PIAPRON"]
[null,"S123","PROGRAMA DE FORTALECIMIENTO SECTORIAL (PROFOSEC)"]
[null,"S126","COMUNIDAD   HUEHUEYOTL,  APOYO   A  COLECTIVOS   DE  PERSONAS ADULTAS MAYORES"]
[null,"S127","MOCHILA DE DERECHOS"]
[null,"S128","DEFENSORÍA  DE  LOS  DERECHOS  Y  APOYOS  ECONÓMICOS  A NIÑAS  Y NIÑOS DE TLALPAN"]
[null,"S129","ASESORÍAS   PARA  EL   EXAMEN  DE   INGRESO  A   LA   EDUCACIÓN  MEDIA SUPERIOR"]
[null,"S130","EDUCARNOS EN COMUNIDAD PARA EL BIENESTAR SOCIAL"]
[null,"S132","APOYO  PROFESIONAL A LA POBLACIÓN EN SUS TAREAS EDUCATIVAS EN LAS BIBLIOTECAS PÚBLICAS"]
[null,"S133","IMAGEN URBANA PARA CULTIVAR COMUNIDAD"]
[null,"S134","HUELLAS: SEMBRANDO COMPAÑÍA EN COMUNIDAD"]
[null,"S135","UNIDAD-ES TLALPAN"]
[null,"S136","JÓVENES CULTIVANDO LA MOVILIDAD"]
[null,"S137","CULTIVANDO COMUNIDAD CON LA PARTICIPACIÓN CIUDADANA"]
[null,"S138","CULTIVANDO ACTIVIDADES DEPORTIVAS"]
[null,"S139","APOYO AL DESARROLLO AGROPECUARIO  SUSTENTABLE"]
[null,"S140","PREVENCIÓN DEL DELITO, TLALPAN"]
[null,"S144","ALIMENTOS A CENTROS DE DESARROLLO INFANTIL"]
[null,"S145","APOYO   ECONÓMICO  A   PERSONAS  QUE   PRESTAN  SUS  INMUEBLES COMO ESPACIOS  PARA CENTROS DE DESARROLLO INFANTIL"]
[null,"S146","AYUDA  A  PERSONAS  DE  ESCASOS  RECURSOS  Y PARA  TRATAMIENTOS MÉDICOS DE ENFERMEDADES CRÓNICO-DEGENERATIVAS, TERMINALES Y DISCAPACIDADES"]
[null,"S147","AYUDA  ECONÓMICA PARA PROMOVER  EL DEPORTE COMPETITIVO EN JÓVENES      "]
[null,"S148","ANIMALES DE CORRAL Y DE TRASPATIO"]
[null,"S149","ENTREGA  DE  SEMILLAS  Y  MATERIAL  VEGETATIVO    PARA FOMENTAR   LA PRODUCCIÓN AGRÍCOLA"]
[null,"S151","PROGRAMA DE APOYO A PERSONAS CON DISCAPACIDAD"]
[null,"S180","PROGRAMA DE DESARROLLO TURÍSTICO PRODETUR"]
[null,"S181","FONDO PARA EMPRENDEDORES DE MILPA ALTA FONEMA"]
[null,"S182","APOYO A ESTANCIAS INFANTILES"]
[null,"S184","COMPAÑÍA DE DANZA CLÁSICA, MODERNA Y FOLCLÓRICA DE LA ALCALDÍA IZTACALCO"]
[null,"S185","ESCUELAS DE MÚSICA DE LA  ALCALDÍA IZTACALCO "]
[null,"S186","PROGRAMA DE APOYO INTEGRAL A LA MUJER PARA LA EQUIDAD (PAIME)"]
[null,"S187","LA EMPLEADORA"]
[null,"S188","PA´QUE TE CUIDEMOS"]
[null,"S189","PROTECTORA DE LA MOVILIDAD"]
[null,"S196","OPERACIÓN DE LOS CENTROS DE ATENCIÓN Y CUIDADO INFANTIL DE LA ALCALDÍA DE COYOACÁN"]
[null,"S200","CULTIVANDO RAÍCES DE IDENTIDAD"]
[null,"S205","PREVENCIÓN DEL EMBARAZO ADOLESCENTE, TLALPAN"]
[null,"S206","FORMACIÓN MUSICAL, TLALPAN"]
[null,"S207","CULTIVANDO ARTE EN TLALPAN"]
[null,"S208","CULTIVANDO PAZ, ARTE Y CULTURA EN TLALPAN"]
[null,"S209","SERVIDORES DE LA EDUCACIÓN"]
[null,"S210","PROGRAMA UNIFORMES Y ÚTILES ESCOLARES GRATUITOS"]
[null,"S211","ATENCIÓN A MENORES Y MADRES EN SITUACIÓN DE VULNERABILIDAD"]
[null,"S212","NÚCLEOS URBANOS DE BIENESTAR EMOCIONAL (NUBE)"]
[null,"S216","APOYO PARA EL IMPULSO LABORAL DE PERSONAS EGRESADAS DEL SISTEMA DE JUSTICIA PENAL DE LA CIUDAD DE MÉXICO (ATENCIÓN PRIORITARIA A PERSONAS LIBERADAS EN SITUACIÓN DE VULNERABILIDAD)"]
[null,"U002","AGUA POTABLE, DRENAJE Y SANEAMIENTO"]
[null,"U007","FINANCIAMIENTO PARA EL ACCESO A LA VIVIENDA"]
[null,"U009","OTROS SUBSIDIOS"]
[null,"U010","PREVENCIÓN DE ENFERMEDADES Y PROMOCIÓN A LA SALUD"]
[null,"U011","PROGRAMA PARA LA RECONSTRUCCIÓN"]
[null,"U012","ASISTENCIA SOCIAL Y SERVICIOS ASISTENCIALES"]
[null,"U014","FINANCIAMIENTO Y PROMOCIÓN DE PROYECTOS CULTURALES Y ARTÍSTICOS"]
[null,"U017","APOYO A LA FORMACIÓN DE CAPITAL HUMANO EN EDUCACIÓN Y CIENCIA"]
[null,"U018","APOYO PARA LA ATENCIÓN Y PREVENCIÓN DE LAS ADICCIONES"]
[null,"U019","SÍ AL DESARME, SÍ A LA PAZ"]
[null,"U020","PROGRAMA DE ATENCIÓN A MENORES VULNERABLES"]
[null,"U021","PROGRAMA DE ATENCIÓN A PERSONAS VULNERABLES"]
[null,"U022","ACCIONES PARA MEJORAR EL SERVICIO DE TRANSPORTE PÚBLICO, ASÍ COMO LA INFRAESTRUCTURA ASOCIADA"]
[null,"U024","SEAMOS MEJORES ESTUDIANTES"]
[null,"U026","APOYOS ECONÓMICOS Y OTRAS AYUDAS SOCIALES"]
[null,"U027","CONVENIOS CON CASAS HOGAR DE NIÑAS Y NIÑOS"]
[null,"U029","CUIDADOS ALTERNATIVOS"]
[null,"U031","AYUDAS A COOPERATIVAS"]
[null,"U032","APOYO A PERSONAS QUE PERDIERON ALGÚN FAMILIAR EN EL SISMO DEL 19 DE SEPTIEMBRE DE 2017"]
[null,"U033","ACTIVIDADES DE INVESTIGACIÓN ACADEMICAS, CIENTIFICAS Y DE DESARROLLO"]
[null,"U034","PROGRAMA DE APOYO PARA IMPLEMENTAR Y EJECUTAR ACCIONES DE PREVENCIÓN DE LA VIOLENCIA CONTRA LAS MUJERES"]
[null,"U035","PROGRAMA PARA LA RECONSTRUCCIÓN, REHABILITACIÓN DE VIVIENDAS Y OTRAS PREVISIONES"]

{"sheet":"ODS","index":2,"n_rows":28,"n_cols":5,"rows_kept":28,"cut":false,"hidden":true,"merged":[]}
["ODS_AGENDA_2030              DEN_ODS","Denominación",null,null,"Acciones"]
[]
[1,"Fin de la pobreza",null,null,"Acciones"]
[2,"Hambre cero ",null,null,"1 Acción"]
[3,"Salud y bienestar ",null,null,"2 Acciones"]
[4,"Educación de calidad",null,null,"3 Acciones"]
[5,"Igualdad de género ",null,null,"4 Acciones"]
[6,"Agua limpia y saneamiento ",null,null,"5 Acciones"]
[7,"Energía asequible y no contaminante",null,null,"6 Acciones"]
[8,"Trabajo decente y crecimiento económico ",null,null,"7 Acciones"]
[9,"Industria, innovación e infraestructuras",null,null,"8 Acciones"]
[10,"Reducción de las desigualdades ",null,null,"9 Acciones"]
[11,"Ciudades y comunidades sostenibles",null,null,"10 Acciones"]
[12,"Producción y consumo responsables",null,null,"11 Acciones"]
[13,"Acción por el clima",null,null,"12 Acciones"]
[14,"Vida submarina",null,null,"13 Acciones"]
[15,"Vida de ecosistemas terrestres",null,null,"14 Acciones"]
[16,"Paz, justicia e instituciones sólidas",null,null,"15 Acciones"]
[17,"Alianzas para lograr los objetivos",null,null,"16 Acciones"]
[null,null,null,null,"17 Acciones"]
[null,null,null,null,"18 Acciones"]
[null,null,null,null,"19 Acciones"]
[null,null,null,null,"20 Acciones"]
[null,null,null,null,"21 Acciones"]
[null,null,null,null,"22 Acciones"]
[null,null,null,null,"23 Acciones"]
[null,null,null,null,"24 Acciones"]
[null,null,null,null,"25 Acciones"]

{"sheet":"sub_eje","index":3,"n_rows":92,"n_cols":9,"rows_kept":92,"cut":false,"hidden":true,"merged":[]}
["EJE","DENOMINACIÓN","X","SUB EJE","DENOMINACIÓN","X","SUB \nSUB EJE","DENOMINACIÓN","X"]
[1,"Igualdad y Derechos",{"$f":"CONCATENATE(A2,\"- \",B2)","v":"1- Igualdad y Derechos"},"1","Cultura Comunitaria",{"$f":"CONCATENATE(D2,\"- \",E2)","v":"1- Cultura Comunitaria"},"0","Atención Ciudadana",{"$f":"CONCATENATE(G2,\"- \",H2)","v":"0- Atención Ciudadana"}]
[2,"Ciudad Sustentable",{"$f":"CONCATENATE(A3,\"- \",B3)","v":"2- Ciudad Sustentable"},"1","Derecho a la educación",{"$f":"CONCATENATE(D3,\"- \",E3)","v":"1- Derecho a la educación"},"0","Cultura Comunitaria",{"$f":"CONCATENATE(G3,\"- \",H3)","v":"0- Cultura Comunitaria"}]
[3,"Más y Mejor Movilidad","3- Más y Mejor Movilidad","1","Desarrollo económico sustentable e incluyente y generación de empleo","1- Desarrollo económico sustentable e incluyente y generación de empleo","0","Derecho a la educación","0- Derecho a la educación"]
[4,"Ciudad de México, capital cultural de America Latina","4- Ciudad de México, capital cultural de America Latina","1","Integrar","1- Integrar","0","Derecho a la igualdad e inclusión","0- Derecho a la igualdad e inclusión"]
[5,"Cero Agresión y Más Seguridad","5- Cero Agresión y Más Seguridad","1","Seguridad Ciudadana","1- Seguridad Ciudadana","0","Derecho a la salud","0- Derecho a la salud"]
[6,"Ciencia, Innovación y Transparencia","6- Ciencia, Innovación y Transparencia","1","Tecnología","1- Tecnología","0","Derechos de las mujeres","0- Derechos de las mujeres"]
[null,null,"- ","2","Ciencia y divulgación","2- Ciencia y divulgación","0","Festivales y Fiestas","0- Festivales y Fiestas"]
[null,null,null,"2","Derecho a la salud","2- Derecho a la salud","0","Fortalecimiento de la procuración de justicia","0- Fortalecimiento de la procuración de justicia"]
[null,null,null,"2","Desarrollo urbano sustentable e incluyente","2- Desarrollo urbano sustentable e incluyente","0","Gobierno Abierto","0- Gobierno Abierto"]
[null,null,null,"2","Fortalecimiento de la procuración de justicia","2- Fortalecimiento de la procuración de justicia","0","Integrar","0- Integrar"]
[null,null,null,"2","Mejorar","2- Mejorar","0","Medio ambiente y recursos naturales","0- Medio ambiente y recursos naturales"]
[null,null,null,"2","Memoria y Patrimonio Cultural comunitario","2- Memoria y Patrimonio Cultural comunitario","0","Memoria y Patrimonio Cultural comunitario","0- Memoria y Patrimonio Cultural comunitario"]
[null,null,null,"3","Derecho a la cultura física y la práctica del deporte","3- Derecho a la cultura física y la práctica del deporte","0","Promoción y Difusión de los Derechos Culturales","0- Promoción y Difusión de los Derechos Culturales"]
[null,null,null,"3","Educación y Formación Artística y Cultural","3- Educación y Formación Artística y Cultural","0","Protección civil","0- Protección civil"]
[null,null,null,"3","Gobierno Abierto","3- Gobierno Abierto","0","Pueblos originarios y poblaciones indígenas residentes","0- Pueblos originarios y poblaciones indígenas residentes"]
[null,null,null,"3","Medio ambiente y recursos naturales","3- Medio ambiente y recursos naturales","0","Seguridad ciudadana","0- Seguridad ciudadana"]
[null,null,null,"3","Protección civil","3- Protección civil","0","Vinculación Interinstitucional y cooperación cultural","0- Vinculación Interinstitucional y cooperación cultural"]
[null,null,null,"3","Proteger","3- Proteger","1","Alerta inmediata","1- Alerta inmediata"]
[null,null,null,"4","Atención Ciudadana","4- Atención Ciudadana","1","Ampliar y fortalecer la educación inicial","1- Ampliar y fortalecer la educación inicial"]
[null,null,null,"4","Derecho a la vivienda","4- Derecho a la vivienda","1","Apoyo a la industria innovadora, sustentable y la economía circular","1- Apoyo a la industria innovadora, sustentable y la economía circular"]
[null,null,null,"4","Festivales y Fiestas","4- Festivales y Fiestas","1","Calidad del Aire","1- Calidad del Aire"]
[null,null,null,"5","Derechos de las mujeres","5- Derechos de las mujeres","1","Democracia participativa","1- Democracia participativa"]
[null,null,null,"5","Promoción y Difusión de los Derechos Culturales","5- Promoción y Difusión de los Derechos Culturales","1","Erradicar prácticas de corrupción","1- Erradicar prácticas de corrupción"]
[null,null,null,"5","Seguridad, protección civil y coordinación interinstitucional","5- Seguridad, protección civil y coordinación interinstitucional","1","Infraestructura segura y con accesibilidad universal para caminar y moverse en bicicleta","1- Infraestructura segura y con accesibilidad universal para caminar y moverse en bicicleta"]
[null,null,null,"6","Derecho a la igualdad e inclusión","6- Derecho a la igualdad e inclusión","1","Integración del sistema de transporte público","1- Integración del sistema de transporte público"]
[null,null,null,"7","Pueblos originarios y poblaciones indígenas residentes","7- Pueblos originarios y poblaciones indígenas residentes","1","Investigación, tecnología e innovación para satisfacer demandas de la ciudad","1- Investigación, tecnología e innovación para satisfacer demandas de la ciudad"]
[null,null,null,"7","Vinculación Interinstitucional y cooperación cultural","7- Vinculación Interinstitucional y cooperación cultural","1","Modelo de atención ciudadana","1- Modelo de atención ciudadana"]
[null,null,null,null,null,null,"1","Niñas, niños y adolescentes","1- Niñas, niños y adolescentes"]
[null,null,null,null,null,null,"1","Ordenamiento de desarrollo urbano","1- Ordenamiento de desarrollo urbano"]
[null,null,null,null,null,null,"1","Promoción del deporte comunitario","1- Promoción del deporte comunitario"]
[null,null,null,null,null,null,"1","Reconstrucción y rehabilitación de viviendas dañadas por el sismo de 2017","1- Reconstrucción y rehabilitación de viviendas dañadas por el sismo de 2017"]
[null,null,null,null,null,null,"1","Rescate y mejora del transporte público","1- Rescate y mejora del transporte público"]
[null,null,null,null,null,null,"1","Salud Universal","1- Salud Universal"]
[null,null,null,null,null,null,"1","Sistema de Gestión Integral de Riesgos","1- Sistema de Gestión Integral de Riesgos"]
[null,null,null,null,null,null,"2","Ampliación de parques, espacios públicos y mejora de servicios urbanos","2- Ampliación de parques, espacios públicos y mejora de servicios urbanos"]
[null,null,null,null,null,null,"2","Apoyar a la Secretaría de Educación Pública Federal en la mejora integral de la educación básica en la Ciudad","2- Apoyar a la Secretaría de Educación Pública Federal en la mejora integral de la educación básica en la Ciudad"]
[null,null,null,null,null,null,"2","Apoyo a la micro y pequeña empresa","2- Apoyo a la micro y pequeña empresa"]
[null,null,null,null,null,null,"2","Atención específica por tipo de delito","2- Atención específica por tipo de delito"]
[null,null,null,null,null,null,"2","Conexión y acercamiento ciudadano","2- Conexión y acercamiento ciudadano"]
[null,null,null,null,null,null,"2","Controles al ejercicio del gobierno","2- Controles al ejercicio del gobierno"]
[null,null,null,null,null,null,"2","Expansión de la cobertura de redes de transporte masivo","2- Expansión de la cobertura de redes de transporte masivo"]
[null,null,null,null,null,null,"2","Formación","2- Formación"]
[null,null,null,null,null,null,"2","Garantizar el derecho al agua y disminuir la sobreexplotación del acuífero Mejora integral del drenaje y saneamiento","2- Garantizar el derecho al agua y disminuir la sobreexplotación del acuífero Mejora integral del drenaje y saneamiento"]
[null,null,null,null,null,null,"2","Integración hacia un sistema único de atención a la salud","2- Integración hacia un sistema único de atención a la salud"]
[null,null,null,null,null,null,"2","Interoperabilidad y conectividad","2- Interoperabilidad y conectividad"]
[null,null,null,null,null,null,"2","Jóvenes","2- Jóvenes"]
[null,null,null,null,null,null,"2","Política de seguridad\nvial orientada al cambio de conducta","2- Política de seguridad\nvial orientada al cambio de conducta"]
[null,null,null,null,null,null,"2","Programa de vivienda social","2- Programa de vivienda social"]
[null,null,null,null,null,null,"3","Ampliación de servicios y atención de emergencias","3- Ampliación de servicios y atención de emergencias"]
[null,null,null,null,null,null,"3","Apoyo a Unidades Habitacionales","3- Apoyo a Unidades Habitacionales"]
[null,null,null,null,null,null,"3","Atención de asentamientos humanos irregulares","3- Atención de asentamientos humanos irregulares"]
[null,null,null,null,null,null,"3","Condiciones óptimas para deportistas de alto rendimiento","3- Condiciones óptimas para deportistas de alto rendimiento"]
[null,null,null,null,null,null,"3","Divulgación y vinculación científica","3- Divulgación y vinculación científica"]
[null,null,null,null,null,null,"3","Educación y Formación Artística y Cultural","3- Educación y Formación Artística y Cultural"]
[null,null,null,null,null,null,"3","Enfoque de atención a víctimas","3- Enfoque de atención a víctimas"]
[null,null,null,null,null,null,"3","Evitar nuevos riesgos","3- Evitar nuevos riesgos"]
[null,null,null,null,null,null,"3","Fortalecer la economía social y el emprendimiento","3- Fortalecer la economía social y el emprendimiento"]
[null,null,null,null,null,null,"3","Fortalecer y ampliar la cobertura de la educación media superior en las demarcaciones periféricas","3- Fortalecer y ampliar la cobertura de la educación media superior en las demarcaciones periféricas"]
[null,null,null,null,null,null,"3","Personas adultas mayores","3- Personas adultas mayores"]
[null,null,null,null,null,null,"3","Programa integral de Residuos Sólidos","3- Programa integral de Residuos Sólidos"]
[null,null,null,null,null,null,"3","Reforma integral del transporte concesionado","3- Reforma integral del transporte concesionado"]
[null,null,null,null,null,null,"4","Apoyo a unidades habitacionales","4- Apoyo a unidades habitacionales"]
[null,null,null,null,null,null,"4","Coordinación con gabinete de seguridad, justicia y gobierno","4- Coordinación con gabinete de seguridad, justicia y gobierno"]
[null,null,null,null,null,null,"4","Fortalecer y ampliar la cobertura de la educación superior pública","4- Fortalecer y ampliar la cobertura de la educación superior pública"]
[null,null,null,null,null,null,"4","Impulso a la innovación y mejora tecnológica","4- Impulso a la innovación y mejora tecnológica"]
[null,null,null,null,null,null,"4","Integración del uso de la Bicicleta al sistema de movilidad",{"$f":"CONCATENATE(G67,\"- \",H67)","v":"4- Integración del uso de la Bicicleta al sistema de movilidad"}]
[null,null,null,null,null,null,"4","Mejorar los canales de abasto, comercio y distribución","4- Mejorar los canales de abasto, comercio y distribución"]
[null,null,null,null,null,null,"4","Participación para una vida saludable","4- Participación para una vida saludable"]
[null,null,null,null,null,null,"4","Personas con discapacidad","4- Personas con discapacidad"]
[null,null,null,null,null,null,"4","Profesionalización de servidores públicos","4- Profesionalización de servidores públicos"]
[null,null,null,null,null,null,"4","Regenerar las condiciones ecológicas de la ciudad: Áreas de Valor Ambiental, Áreas Naturales Protegidas y Suelo de Conservación","4- Regenerar las condiciones ecológicas de la ciudad: Áreas de Valor Ambiental, Áreas Naturales Protegidas y Suelo de Conservación"]
[null,null,null,null,null,null,"4","Regularización de la propiedad en colonias ubicadas en el suelo urbano","4- Regularización de la propiedad en colonias ubicadas en el suelo urbano"]
[null,null,null,null,null,null,"4","Respuesta eficaz","4- Respuesta eficaz"]
[null,null,null,null,null,null,"5","Cultura de denuncia","5- Cultura de denuncia"]
[null,null,null,null,null,null,"5","Fomento al turismo","5- Fomento al turismo"]
[null,null,null,null,null,null,"5","Gobernanza tecnológica","5- Gobernanza tecnológica"]
[null,null,null,null,null,null,"5","Personas LGBTTIQA","5- Personas LGBTTIQA"]
[null,null,null,null,null,null,"5","PILARES: Puntos de Innovación, Libertades, Artes, Educación y Saberes","5- PILARES: Puntos de Innovación, Libertades, Artes, Educación y Saberes"]
[null,null,null,null,null,null,"5","Profesionalización de servicios médicos","5- Profesionalización de servicios médicos"]
[null,null,null,null,null,null,"6","Mejora en la atención ciudadana","6- Mejora en la atención ciudadana"]
[null,null,null,null,null,null,"6","Mejorar la protección social para el desempleo","6- Mejorar la protección social para el desempleo"]
[null,null,null,null,null,null,"6","Personas en situación de calle","6- Personas en situación de calle"]
[null,null,null,null,null,null,"6","Rendición de cuentas y transparencia","6- Rendición de cuentas y transparencia"]
[null,null,null,null,null,null,"7","Derechos humanos y empleo","7- Derechos humanos y empleo"]
[null,null,null,null,null,null,"7","Operación policial basada en cuadrantes, controles de confianza y su evaluación permanente","7- Operación policial basada en cuadrantes, controles de confianza y su evaluación permanente"]
[null,null,null,null,null,null,"7","Personas migrantes","7- Personas migrantes"]
[null,null,null,null,null,null,"8","Víctimas","8- Víctimas"]
[null,null,null,null,null,null,"9","Formación, capacitación y carrera policial","9- Formación, capacitación y carrera policial"]
[null,null,null,null,null,null,11,"Protección de los derechos humanos de la ciudadanía y protocolos de actuación policial","11- Protección de los derechos humanos de la ciudadanía y protocolos de actuación policial"]
[null,null,null,null,null,null,12,"Fortalecimiento de la prevención","12- Fortalecimiento de la prevención"]
[null,null,null,null,null,null,13,"Estrategia alto al fuego en colonias, barrios y pueblos con mayor índice delictivo","13- Estrategia alto al fuego en colonias, barrios y pueblos con mayor índice delictivo"]

{"sheet":"CF","index":4,"n_rows":191,"n_cols":23,"rows_kept":191,"cut":false,"hidden":true,"merged":[]}
["NIVEL","CONCATENADO","FINALIDAD","FUNCIÓN","SUBFUNCIÓN","DENOMINACIÓN","DENOM - Altas Bajas",null,null,null,null,null,null,null,null,"AI","DENOMINACIÓN",null,null,null,null,"CG","DENOMINACIÓN"]
[{"$f":"+LEN(B2)","v":1},{"$f":"CONCATENATE(C2,D2,E2)","v":"1"},1,null,null,"GOBIERNO","GOBIERNO"]
[{"$f":"+LEN(B3)","v":2},{"$f":"CONCATENATE(C3,D3,E3)","v":"11"},1,1,null,"LEGISLACIÓN","Legislación",null,null,1,"Gobierno",null,null,null,null,"001","FUNCIÓN PÚBLICA Y BUEN GOBIERNO",null,null,null,null,"01C001","JEFATURA DE GOBIERNO"]
[3,"111",1,1,1,"LEGISLACIÓN","Legislación",null,null,2,"Desarrollo Social",null,null,null,null,"002","GESTIÓN INTEGRAL DE RIESGOS EN MATERIA DE PROTECCIÓN CIVIL",null,null,null,null,"01CD03","CENTRO DE COMANDO, CONTROL, CÓMPUTO, COMUNICACIONES Y CONTACTO CIUDADANO"]
[3,"112",1,1,2,"FISCALIZACIÓN","Fiscalización",null,null,3,"Desarrollo Económico",null,null,null,null,"003","TRANSVERSALIZACIÓN DE LA PERSPECTIVA DE GÉNERO",null,null,null,null,"01CD06","AGENCIA DIGITAL DE INNOVACION PUBLICA DE LA CDMX"]
[2,"12",1,2,null,"JUSTICIA","Justicia",null,null,4,"Otras No Clasificadas En Funciones Anteriores",null,null,null,null,"004","TRANSVERSALIZACIÓN DEL ENFOQUE DE DERECHOS HUMANOS",null,null,null,null,"01P0ES","FONDO PARA EL DESARROLLO ECONÓMICO Y SOCIAL"]
[3,"121",1,2,1,"IMPARTICIÓN DE JUSTICIA","Impartición De Justicia",null,null,null,null,null,null,null,null,"005","SEGURO CONTRA ACCIDENTES PERSONALES DE ESCOLARES",null,null,null,null,"02C001","SECRETARÍA DE GOBIERNO"]
[3,"122",1,2,2,"PROCURACIÓN DE JUSTICIA","Procuración De Justicia",null,null,null,null,null,null,null,null,"006","SISTEMA DE PROTECCIÓN INTEGRAL DE NIÑAS, NIÑOS Y ADOLESCENTES DE LA CIUDAD DE MÉXICO",null,null,null,null,"02CD01","ALCALDÍA ÁLVARO OBREGÓN"]
[3,"123",1,2,3,"RECLUSIÓN Y READAPTACIÓN SOCIAL","Reclusión Y Readaptación Social",null,null,{"$f":"+J8+1","v":1},null,null,null,null,null,"007","ACCIONES DE RECONSTRUCCIÓN Y OTRAS PREVISIONES",null,null,null,null,"02CD02","ALCALDÍA AZCAPOTZALCO"]
[3,"124",1,2,4,"DERECHOS HUMANOS","Derechos Humanos",null,null,{"$f":"+J9+1","v":2},null,null,null,null,null,"008","ACCIONES DIRIGIDAS A PERSONAS CON DISCAPACIDAD",null,null,null,null,"02CD03","ALCALDÍA BENITO JUÁREZ"]
[2,"13",1,3,null,"COORDINACIÓN DE LA POLÍTICA DE GOBIERNO","Coordinación De La Política De Gobierno",null,null,3,null,null,null,null,null,"009","ACCIONES DIRIGIDAS A PERSONAS PRIVADAS DE SU LIBERTAD Y EN PROCEDIMIENTO LEGAL",null,null,null,null,"02CD04","ALCALDÍA COYOACÁN"]
[3,"131",1,3,1,"PRESIDENCIA / GUBERNATURA","Presidencia / Gubernatura",null,null,4,null,null,null,null,null,"010","ACCIONES EN MATERIA DE PREVENCIÓN Y ATENCIÓN DE ADICCIONES",null,null,null,null,"02CD05","ALCALDÍA CUAJIMALPA DE MORELOS"]
[3,"132",1,3,2,"POLÍTICA INTERIOR","Política Interior",null,null,5,null,null,null,null,null,"011","POLÍTICA FISCAL Y TRIBUTARIA",null,null,null,null,"02CD06","ALCALDÍA CUAUHTÉMOC"]
[3,"133",1,3,3,"PRESERVACIÓN Y CUIDADO DEL PATRIMONIO PÚBLICO","Preservación Y Cuidado Del Patrimonio Público",null,null,6,null,null,null,null,null,"013","PREVENCIÓN DE LA VIOLENCIA CON PARTICIPACIÓN CIUDADANA",null,null,null,null,"02CD07","ALCALDÍA GUSTAVO A. MADERO"]
[3,"134",1,3,4,"FUNCIÓN PÚBLICA","Función Pública",null,null,7,null,null,null,null,null,"014","APOYO A LA PROCURACIÓN DE JUSTICIA",null,null,null,null,"02CD08","ALCALDÍA IZTACALCO"]
[3,"135",1,3,5,"ASUNTOS JURÍDICOS","Asuntos Jurídicos",null,null,8,null,null,null,null,null,"015","ASESORÍA PARA PROGRAMAS Y PROYECTOS",null,null,null,null,"02CD09","ALCALDÍA IZTAPALAPA"]
[3,"136",1,3,6,"ORGANIZACIÓN DE PROCESOS ELECTORALES","Organización De Procesos Electorales",null,null,9,null,null,null,null,null,"017","ATENCIÓN A GRUPOS VULNERABLES",null,null,null,null,"02CD10","ALCALDÍA LA MAGDALENA CONTRERAS"]
[3,"137",1,3,7,"POBLACIÓN","Población",null,null,0,null,null,null,null,null,"019","ATENCIÓN INTEGRAL A VÍCTIMAS DE VIOLENCIA",null,null,null,null,"02CD11","ALCALDÍA MIGUEL HIDALGO"]
[3,"138",1,3,8,"TERRITORIO","Territorio",null,null,null,null,null,null,null,null,"020","ATENCIÓN MÉDICA INTEGRAL",null,null,null,null,"02CD12","ALCALDÍA MILPA ALTA"]
[3,"139",1,3,9,"OTROS","Otros",null,null,null,null,null,null,null,null,"021","CAPACITACIÓN Y FORTALECIMIENTO PARA Y EN EL TRABAJO",null,null,null,null,"02CD13","ALCALDÍA TLÁHUAC"]
[2,"14",1,4,null,"RELACIONES EXTERIORES","Relaciones Exteriores",null,null,null,null,null,null,null,null,"022","INVESTIGACIÓN Y COMBATE DE DELITOS QUE COMPETEN A LA UNIDAD DE INTELIGENCIA FINANCIERA",null,null,null,null,"02CD14","ALCALDÍA TLALPAN"]
[3,"141",1,4,1,"RELACIONES EXTERIORES","Relaciones Exteriores",null,null,null,null,null,null,null,null,"023","COMBATE A LA DISCRIMINACIÓN Y VIOLENCIA HACIA LAS MUJERES",null,null,null,null,"02CD15","ALCALDÍA VENUSTIANO CARRANZA"]
[2,"15",1,5,null,"ASUNTOS FINANCIEROS Y HACENDARIOS","Asuntos Financieros Y Hacendarios",null,null,null,null,null,null,null,null,"024","CONSTRUCCIÓN Y SUPERVISIÓN DE INFRAESTRUCTURA PÚBLICA",null,null,null,null,"02CD16","ALCALDÍA XOCHIMILCO"]
[3,"151",1,5,1,"ASUNTOS FINANCIEROS","Asuntos Financieros",null,null,null,null,null,null,null,null,"025","CONTROL Y ACCIONES DIRIGIDAS PARA LA REINSERCIÓN SOCIAL DE POBLACIÓN LIBERADA Y PRELIBERADA",null,null,null,null,"02CDBP","COMISIÓN DE BUSQUEDA DE PERSONAS DE LA CIUDAD DE MÉXICO"]
[3,"152",1,5,2,"ASUNTOS HACENDARIOS","Asuntos Hacendarios",null,null,null,null,null,null,null,null,"026","ATENCIÓN A EMERGENCIAS Y PROTECCIÓN CIUDADANA",null,null,null,null,"02OD04","AUTORIDAD DEL CENTRO HISTÓRICO DE LA CDMX"]
[2,"16",1,6,null,"SEGURIDAD NACIONAL","Seguridad Nacional",null,null,null,null,null,null,null,null,"028","COORDINACIÓN ENTRE INSTANCIAS PÚBLICAS O PRIVADAS PARA LA ATRACCIÓN DE INVERSIÓN Y EL DESARROLLO ECONÓMICO",null,null,null,null,"02OD06","INSTANCIA EJECUTORA DEL SISTEMA INTEGRAL DE DERECHOS HUMANOS"]
[3,"161",1,6,1,"DEFENSA","Defensa",null,null,null,null,null,null,null,null,"029","SERVICIO DE LA DEUDA",null,null,null,null,"02PDAV","COMISIÓN EJECUTIVA DE ATENCIÓN A VICTÍMAS DE LA CIUDAD DE MÉXICO"]
[3,"162",1,6,2,"MARINA","Marina",null,null,null,null,null,null,null,null,"030","CRECIMIENTO Y DESARROLLO SOSTENIBLE",null,null,null,null,"02PDDP","MECANISMO DE PROTECCIÓN INTEGRAL DE PERSONAS DEFENSORAS DE DERECHOS HUMANOS Y PERIODISTAS"]
[3,"163",1,6,3,"INTELIGENCIA PARA LA PRESERVACIÓN DE LA SEGURIDAD NACIONAL","Inteligencia Para La Preservación De La Seguridad Nacional",null,null,null,null,null,null,null,null,"031","ACCIONES PARA EL MEJORAMIENTO DE LA VIVIENDA",null,null,null,null,"03C001","SECRETARÍA DE DESARROLLO URBANO Y VIVIENDA"]
[2,"17",1,7,null,"ASUNTOS DE ORDEN PUBLICO Y DE SEGURIDAD INTERIOR","Asuntos De Orden Público Y De Seguridad Interior",null,null,null,null,null,null,null,null,"032","DERECHOS HUMANOS DE LA ADOLESCENCIA Y LA INFANCIA",null,null,null,null,"03PDIV","INSTITUTO DE VIVIENDA"]
[3,"171",1,7,1,"POLICÍA","Policía",null,null,null,null,null,null,null,null,"035","PROFESIONALIZACIÓN DE SERVIDORES PÚBLICOS DE LA SALUD",null,null,null,null,"04C001","SECRETARÍA DE DESARROLLO ECONÓMICO"]
[3,"172",1,7,2,"PROTECCIÓN CIVIL","Protección Civil",null,null,null,null,null,null,null,null,"036","EMISIÓN DE DICTÁMENES Y AVALÚOS",null,null,null,null,"04P0DE","FONDO DE DESARROLLO ECONÓMICO DEL DISTRITO FEDERAL"]
[3,"173",1,7,3,"OTROS ASUNTOS DE ORDEN PÚBLICO Y SEGURIDAD","Otros Asuntos De Orden Público Y Seguridad",null,null,null,null,null,null,null,null,"037","EVALUACIÓN Y SEGUIMIENTO DE POLÍTICAS, PROGRAMAS Y PROYECTOS",null,null,null,null,"04P0DS","FONDO PARA EL DESARROLLO SOCIAL"]
[3,"174",1,7,4,"SISTEMA NACIONAL DE SEGURIDAD PÚBLICA","Sistema Nacional De Seguridad Pública",null,null,null,null,null,null,null,null,"039","FINANCIAMIENTO Y CRÉDITOS",null,null,null,null,"05C001","SECRETARÍA DE TURISMO"]
[2,"18",1,8,null,"OTROS SERVICIOS GENERALES","Otros Servicios Generales",null,null,null,null,null,null,null,null,"041","FORTALECIMIENTO A LA EDUCACIÓN",null,null,null,null,"05P0PT","FONDO MIXTO DE PROMOCIÓN TURÍSTICA"]
[3,"181",1,8,1,"SERVICIOS REGISTRALES, ADMINISTRATIVOS Y PATRIMONIALES","Servicios Registrales, Administrativos Y Patrimoniales",null,null,null,null,null,null,null,null,"042","FORTALECIMIENTO A LA EDUCACIÓN MEDIA SUPERIOR",null,null,null,null,"06C001","SECRETARÍA DEL MEDIO AMBIENTE"]
[3,"182",1,8,2,"SERVICIOS ESTADÍSTICOS","Servicios Estadísticos",null,null,null,null,null,null,null,null,"044","GESTIÓN Y CONSERVACIÓN MUSEÍSTICA",null,null,null,null,"06CD03","SISTEMA DE AGUAS"]
[3,"183",1,8,3,"SERVICIOS DE COMUNICACIÓN Y MEDIOS","Servicios De Comunicación Y Medios",null,null,null,null,null,null,null,null,"045","GOBIERNO ABIERTO, DIGITAL Y GOBERNANZA TECNOLÓGICA",null,null,null,null,"06CD05","AGENCIA DE ATENCIÓN ANIMAL"]
[3,"184",1,8,4,"ACCESO A LA INFORMACIÓN PÚBLICA GUBERNAMENTAL","Acceso A La Información Pública Gubernamental",null,null,null,null,null,null,null,null,"046","IMPULSO Y FOMENTO A LA CULTURA FÍSICA Y EL DEPORTE",null,null,null,null,"06P0FA","FONDO AMBIENTAL PÚBLICO"]
[3,"185",1,8,5,"OTROS","Otros",null,null,null,null,null,null,null,null,"047","INNOVACIÓN, CIENCIA Y TECNOLOGÍA",null,null,null,null,"06PDPA","PROCURADURÍA AMBIENTAL Y DEL ORDENAMIENTO TERRITORIAL"]
[1,"2",2,null,null,"DESARROLLO SOCIAL","Desarrollo Social",null,null,null,null,null,null,null,null,"049","MANTENIMIENTO DE INFRAESTRUCTURA VIAL, ZONAS VERDES Y ESPACIOS PÚBLICOS",null,null,null,null,"07C001","SECRETARÍA DE OBRAS Y SERVICIOS"]
[2,"21",2,1,null,"PROTECCIÓN AMBIENTAL","Protección Ambiental",null,null,null,null,null,null,null,null,"050","OPERACIÓN DE CENTROS DE DESARROLLO COMUNITARIO",null,null,null,null,"07CD01","PLANTA PRODUCTORA DE MEZCLAS ASFÁLTICAS"]
[3,"211",2,1,1,"ORDENACIÓN DE DESECHOS","Ordenación De Desechos",null,null,null,null,null,null,null,null,"052","OPERACIÓN Y MANTENIMIENTO DEL SISTEMA DE MOVILIDAD",null,null,null,null,"07PDIF","INSTITUTO LOCAL DE LA INFRAESTRUCTURA FÍSICA EDUCATIVA"]
[3,"212",2,1,2,"ADMINISTRACIÓN DEL AGUA","Administración Del Agua",null,null,null,null,null,null,null,null,"053","ORIENTACIÓN TÉCNICA O JURÍDICA",null,null,null,null,"07PDIS","INSTITUTO PARA LA SEGURIDAD DE LAS CONSTRUCCIONES"]
[3,"213",2,1,3,"ORDENACIÓN DE AGUAS RESIDUALES, DRENAJE Y ALCANTARILLADO","Ordenación De Aguas Residuales, Drenaje Y Alcantarillado",null,null,null,null,null,null,null,null,"055","PARTICIPACIÓN CIUDADANA",null,null,null,null,"08C001","SECRETARÍA DE INCLUSIÓN Y BIENESTAR SOCIAL"]
[3,"214",2,1,4,"REDUCCIÓN DE LA CONTAMINACIÓN","Reducción De La Contaminación",null,null,null,null,null,null,null,null,"056","PLANEACIÓN Y CONTROL DEL GASTO",null,null,null,null,"08PDCE","CONSEJO DE EVALUACIÓN DEL DESARROLLO SOCIAL"]
[3,"215",2,1,5,"PROTECCIÓN DE LA DIVERSIDAD BIOLÓGICA Y DEL PAISAJE","Protección De La Diversidad Biológica Y Del Paisaje",null,null,null,null,null,null,null,null,"058","PLANEACIÓN, CONTROL Y DESARROLLO DE PROGRAMAS Y PROYECTOS",null,null,null,null,"08PDCP","CONSEJO PARA PREVENIR Y ELIMINAR LA DISCRIMINACIÓN"]
[3,"216",2,1,6,"OTROS DE PROTECCIÓN AMBIENTAL","Otros De Protección Ambiental",null,null,null,null,null,null,null,null,"059","PLANEACIÓN, DESARROLLO URBANO Y ORDENAMIENTO TERRITORIAL",null,null,null,null,"08PDDF","SISTEMA PARA EL DESARROLLO INTEGRAL DE LA FAMILIA"]
[2,"22",2,2,null,"VIVIENDA Y SERVICIOS A LA COMUNIDAD","Vivienda Y Servicios A La Comunidad",null,null,null,null,null,null,null,null,"061","PRESERVACIÓN, PRODUCCIÓN Y DIFUSIÓN DE MATERIAL DE AUDIO Y AUDIOVISUAL",null,null,null,null,"08PDII","INSTITUTO DE LAS PERSONAS CON DISCAPACIDAD"]
[3,"221",2,2,1,"URBANIZACIÓN","Urbanización",null,null,null,null,null,null,null,null,"062","PREVENCIÓN DE LA VIOLENCIA Y COMBATE A LA DISCRIMINACIÓN",null,null,null,null,"08PDIJ","INSTITUTO DE LA JUVENTUD"]
[3,"222",2,2,2,"DESARROLLO COMUNITARIO","Desarrollo Comunitario",null,null,null,null,null,null,null,null,"063","PREVENCIÓN DE LA VIOLENCIA Y EL DELITO",null,null,null,null,"08PDPS","PROCURADURÍA SOCIAL"]
[3,"223",2,2,3,"ABASTECIMIENTO DE AGUA","Abastecimiento De Agua",null,null,null,null,null,null,null,null,"064","PREVENCIÓN Y PROMOCIÓN DE LA SALUD",null,null,null,null,"09C001","SECRETARÍA DE ADMINISTRACIÓN Y FINANZAS"]
[3,"224",2,2,4,"ALUMBRADO PÚBLICO","Alumbrado Público",null,null,null,null,null,null,null,null,"069","POLÍTICAS DE ATENCIÓN Y ACCESO A LA JUSTICIA PARA LAS MUJERES VICTÍMAS DE VIOLENCIA",null,null,null,null,"09PDLR","CAJA DE PREVISIÓN PARA TRABAJADORES A LISTA DE RAYA"]
[3,"225",2,2,5,"VIVIENDA","Vivienda",null,null,null,null,null,null,null,null,"070","PRODUCCIÓN Y COMERCIALIZACIÓN DE MEZCLA ASFÁLTICA PARA LA REHABILITACIÓN DE LAS VÍAS PRIMARIAS Y SECUNDARIAS",null,null,null,null,"09PDPA","CAJA DE PREVISIÓN DE LA POLICÍA AUXILIAR"]
[3,"226",2,2,6,"SERVICIOS COMUNALES","Servicios Comunales",null,null,null,null,null,null,null,null,"071","PROFESIONALIZACIÓN DE SERVIDORES PÚBLICOS",null,null,null,null,"09PDPP","CAJA DE PREVISIÓN DE LA POLICÍA PREVENTIVA"]
[3,"227",2,2,7,"DESARROLLO REGIONAL","Desarrollo Regional",null,null,null,null,null,null,null,null,"072","PROMOCIÓN DE LOS DERECHOS SEXUALES Y REPRODUCTIVOS",null,null,null,null,"09PECM","CORPORACIÓN MEXICANA DE IMPRESIÓN, S.A. DE C.V."]
[2,"23",2,3,null,"SALUD","Salud",null,null,null,null,null,null,null,null,"073","PROMOCIÓN Y CONSERVACIÓN DEL PATRIMONIO MATERIAL E INMATERIAL",null,null,null,null,"09PECV","PROCDMX, S.A. DE C.V."]
[3,"231",2,3,1,"PRESTACIÓN DE SERVICIOS DE SALUD A LA COMUNIDAD","Prestación De Servicios De Salud A La Comunidad",null,null,null,null,null,null,null,null,"075","PROMOCIÓN Y DIFUSIÓN DE LOS DERECHOS HUMANOS DE LAS MUJERES Y NIÑAS",null,null,null,null,"09PESM","SERVICIOS METROPOLITANOS, S.A. DE C.V."]
[3,"232",2,3,2,"PRESTACIÓN DE SERVICIOS DE SALUD A LA PERSONA","Prestación De Servicios De Salud A La Persona",null,null,null,null,null,null,null,null,"077","PROMOCIÓN Y FOMENTO DE LOS DERECHOS CULTURALES",null,null,null,null,"09PFCH","FIDEICOMISO CENTRO HISTÓRICO"]
[3,"233",2,3,3,"GENERACIÓN DE RECURSOS PARA LA SALUD","Generación De Recursos Para La Salud",null,null,null,null,null,null,null,null,"078","PROMOCIÓN Y FOMENTO DE MANIFESTACIONES CULTURALES",null,null,null,null,"09PFRC","FIDEICOMISO DE RECUPERACIÓN CREDITICIA"]
[3,"234",2,3,4,"RECTORÍA DEL SISTEMA DE SALUD","Rectoría Del Sistema De Salud",null,null,null,null,null,null,null,null,"079","PROMOCIÓN Y FOMENTO DEL TURISMO",null,null,null,null,"09PFRI","FIDEICOMISO PARA LA RECONSTRUCCIÓN INTEGRAL DE LA CIUDAD DE MÉXICO"]
[3,"235",2,3,5,"PROTECCIÓN SOCIAL EN SALUD","Protección Social En Salud",null,null,null,null,null,null,null,null,"081","PROTECCIÓN DEL MEDIO AMBIENTE Y RECURSOS NATURALES",null,null,null,null,"10C001","SECRETARÍA DE MOVILIDAD"]
[2,"24",2,4,null,"RECREACIÓN, CULTURA Y OTRAS MANIFESTACIONES SOCIALES","Recreación, Cultura Y Otras Manifestaciones Sociales",null,null,null,null,null,null,null,null,"083","PROTECCIÓN Y DEFENSA DE LOS DERECHOS HUMANOS LABORALES Y PREVISIÓN SOCIAL",null,null,null,null,"10CD01","ÓRGANO REGULADOR DE TRANSPORTE"]
[3,"241",2,4,1,"DEPORTE Y RECREACIÓN","Deporte Y Recreación",null,null,null,null,null,null,null,null,"084","RECOLECCIÓN, TRATAMIENTO Y DISPOSICIÓN FINAL DE DESECHOS SÓLIDOS Y PELIGROSOS",null,null,null,null,"10P0AC","FONDO PÚBLICO DE ATENCIÓN AL CICLISTA Y AL PEATÓN"]
[3,"242",2,4,2,"CULTURA","Cultura",null,null,null,null,null,null,null,null,"085","RECREACIÓN Y DEPORTE",null,null,null,null,"10P0TP","FIDEICOMISO PARA EL FONDO DE PROMOCIÓN PARA EL FINANCIAMIENTO DEL TRANSPORTE PÚBLICO"]
[3,"243",2,4,3,"RADIO, TELEVISIÓN Y EDITORIALES","Radio, Televisión Y Editoriales",null,null,null,null,null,null,null,null,"087","REFORZAMIENTO DE LA INFRAESTRUCTURA EN SALUD",null,null,null,null,"10PDMB","METROBÚS"]
[{"$f":"+LEN(B67)","v":3},{"$f":"CONCATENATE(C67,D67,E67)","v":"244"},2,4,4,"ASUNTOS RELIGIOSOS Y OTRAS MANIFESTACIONES SOCIALES","Asuntos Religiosos Y Otras Manifestaciones Sociales",null,null,null,null,null,null,null,null,"088","REGULACIÓN, CONTROL, PROTECCIÓN Y VIGILANCIA DE RIESGOS SANITARIOS",null,null,null,null,"10PDME","SISTEMA DE TRANSPORTE COLECTIVO"]
[2,"25",2,5,null,"EDUCACIÓN","Educación",null,null,null,null,null,null,null,null,"089","REGULACIÓN, PROTECCIÓN Y CUIDADO ANIMAL",null,null,null,null,"10PDRT","RED DE TRANSPORTE DE PASAJEROS (RTP)"]
[3,"251",2,5,1,"EDUCACIÓN BÁSICA","Educación Básica",null,null,null,null,null,null,null,null,"091","REPRESENTACIÓN Y DEFENSA DEL GOBIERNO EN MATERIA FISCAL Y HACENDARIA",null,null,null,null,"10PDTE","SERVICIO DE TRANSPORTES ELÉCTRICOS"]
[3,"252",2,5,2,"EDUCACIÓN MEDIA SUPERIOR","Educación Media Superior",null,null,null,null,null,null,null,null,"092","RESTAURACIÓN DEL EQUILIBRIO ECOLÓGICO, CONSERVACIÓN DE ÁREAS NATURALES PROTEGIDAS Y FOMENTO A LA PRODUCCIÓN AGROECOLÓGICA",null,null,null,null,"11C001","SECRETARÍA DE SEGURIDAD CIUDADANA"]
[3,"253",2,5,3,"EDUCACIÓN SUPERIOR","Educación Superior",null,null,null,null,null,null,null,null,"093","SEGUIMIENTO A LAS ACCIONES PARA LA TRANSVERSALIZACIÓN DEL ENFOQUE DE DERECHOS HUMANOS.   ",null,null,null,null,"11CD01","UNIVERSIDAD DE LA POLICÍA"]
[3,"254",2,5,4,"POSGRADO","Posgrado",null,null,null,null,null,null,null,null,"094","CONSTRUCCIÓN, AMPLIACIÓN, OPERACIÓN Y MANTENIMIENTO DE LA INFRAESTRCUTURA DE DRENAJE Y TRATAMIENTO",null,null,null,null,"11CD02","POLICÍA AUXILIAR DEL DISTRITO FEDERAL"]
[3,"255",2,5,5,"EDUCACIÓN PARA ADULTOS","Educación Para Adultos",null,null,null,null,null,null,null,null,"095","USO Y APROVECHAMIENTO DE ESPACIOS PÚBLICOS",null,null,null,null,"11CD03","POLICÍA BANCARIA E INDUSTRIAL"]
[3,"256",2,5,6,"OTROS SERVICIOS EDUCATIVOS Y ACTIVIDADES INHERENTES","Otros Servicios Educativos Y Actividades Inherentes",null,null,null,null,null,null,null,null,"096","VERIFICACIÓN ADMINISTRATIVA",null,null,null,null,"13C001","SECRETARÍA DE LA CONTRALORÍA GENERAL"]
[2,"26",2,6,null,"PROTECCIÓN SOCIAL","Protección Social",null,null,null,null,null,null,null,null,"098","APOYO PARA LA SUPERACIÓN DE LAS MUJERES",null,null,null,null,"13PDEA","ESCUELA DE ADMINISTRACIÓN PÚBLICA"]
[3,"261",2,6,1,"ENFERMEDAD E INCAPACIDAD","Enfermedad E Incapacidad",null,null,null,null,null,null,null,null,"101","FORTALECIMIENTO DEL DEPORTE",null,null,null,null,"13PDVA","INSTITUTO DE VERIFICACIÓN ADMINISTRATIVA"]
[3,"262",2,6,2,"EDAD AVANZADA","Edad Avanzada",null,null,null,null,null,null,null,null,"102","GENERACIÓN DE DESARROLLO ECONÓMICO SUSTENTABLE E INCLUYENTE",null,null,null,null,"14P0PJ","FIDEICOMISO PÚBLICO DEL FONDO DE APOYO A LA PROCURACIÓN DE JUSTICIA"]
[3,"263",2,6,3,"FAMILIA E HIJOS","Familia E Hijos",null,null,null,null,null,null,null,null,"103","PROFESIONALIZACIÓN DE MUJERES",null,null,null,null,"15C006","TESORERÍA"]
[3,"264",2,6,4,"DESEMPLEO","Desempleo",null,null,null,null,null,null,null,null,"104","ADMINISTRACIÓN DE CAPITAL HUMANO",null,null,null,null,"16C000","DEUDA PÚBLICA"]
[3,"265",2,6,5,"ALIMENTACIÓN Y NUTRICIÓN","Alimentación Y Nutrición",null,null,null,null,null,null,null,null,"105","ACCIONES PARA EL FORTALECIMIENTO DEL DESARROLLO SOCIAL",null,null,null,null,"17L000","CONGRESO DE LA CIUDAD DE MÉXICO"]
[3,"266",2,6,6,"APOYO SOCIAL PARA LA VIVIENDA","Apoyo Social Para La Vivienda",null,null,null,null,null,null,null,null,"106","ACCIONES PARA GARANTIZAR LA SEGURIDAD ALIMENTARIA Y NUTRICIONAL",null,null,null,null,"18L000","AUDITORÍA SUPERIOR"]
[3,"267",2,6,7,"INDÍGENAS","Indígenas",null,null,null,null,null,null,null,null,"108","SEGURIDAD, CONTROL DEL TRÁNSITO VEHICULAR Y CULTURA VIAL",null,null,null,null,"19J000","TRIBUNAL SUPERIOR DE JUSTICIA"]
[3,"268",2,6,8,"OTROS GRUPOS VULNERABLES","Otros Grupos Vulnerables",null,null,null,null,null,null,null,null,"109","OPERACIÓN DE LA POLICÍA EN CUADRANTES",null,null,null,null,"20J000","CONSEJO DE LA JUDICATURA"]
[3,"269",2,6,9,"OTROS DE SEGURIDAD SOCIAL Y ASISTENCIA SOCIAL","Otros De Seguridad Social Y Asistencia Social",null,null,null,null,null,null,null,null,"110","GESTIÓN INTEGRAL DE LA ORQUESTA FILARMÓNICA DE LA CIUDAD DE MÉXICO",null,null,null,null,"21A000","TRIBUNAL DE JUSTICIA ADMINISTRATIVA"]
[2,"27",2,7,null,"OTROS ASUNTOS SOCIALES","Otros Asuntos Sociales",null,null,null,null,null,null,null,null,"111","COMERCIALIZACIÓN Y ABASTECIMIENTO DE IMPRENTA",null,null,null,null,"22A000","JUNTA LOCAL DE CONCILIACIÓN Y ARBITRAJE"]
[3,"271",2,7,1,"OTROS ASUNTOS SOCIALES","Otros Asuntos Sociales",null,null,null,null,null,null,null,null,"112","INTEGRACIÓN DE INFORMES DEL GOBIERNO DE LA CIUDAD DE MÉXICO",null,null,null,null,"23A000","COMISIÓN DE DERECHOS HUMANOS"]
[1,"3",3,null,null,"DESARROLLO ECONÓMICO","Desarrollo Económico",null,null,null,null,null,null,null,null,"113","MONITOREO ATMOSFÉRICO Y EMISIONES DE OTROS CONTAMINANTES",null,null,null,null,"24A000","INSTITUTO ELECTORAL"]
[2,"31",3,1,null,"ASUNTOS ECONÓMICOS, COMERCIALES Y LABORALES EN GENERAL","Asuntos Económicos, Comerciales Y Laborales En General",null,null,null,null,null,null,null,null,"115","OPERACIÓN DE CENTROS PARA EL DESARROLLO INFANTIL",null,null,null,null,"25C001","CONSEJERÍA JURÍDICA Y DE SERVICIOS LEGALES"]
[3,"311",3,1,1,"ASUNTOS ECONÓMICOS Y COMERCIALES EN GENERAL","Asuntos Económicos Y Comerciales En General",null,null,null,null,null,null,null,null,"117","ACCIONES PARA EL DESARROLLO Y BIENESTAR DE LOS JÓVENES",null,null,null,null,"26C001","SECRETARÍA DE SALUD"]
[3,"312",3,1,2,"ASUNTOS LABORALES GENERALES","Asuntos Laborales Generales",null,null,null,null,null,null,null,null,"118","OPERACIÓN Y ADMINISTRACIÓN DE ZOOLÓGICOS",null,null,null,null,"26CD01","AGENCIA DE PROTECCIÓN SANITARIA"]
[2,"32",3,2,null,"AGROPECUARIA, SILVICULTURA, PESCA Y CAZA","Agropecuaria, Silvicultura, Pesca Y Caza",null,null,null,null,null,null,null,null,"122","ATENCIÓN A ADULTOS MAYORES",null,null,null,null,"26PDIA","INSTITUTO PARA LA ATENCIÓN Y PREVENCIÓN DE LAS ADICCIONES"]
[3,"321",3,2,1,"AGROPECUARIA","Agropecuaria",null,null,null,null,null,null,null,null,"123","ACCIONES PARA EL FORTALECIMIENTO DE OSC",null,null,null,null,"26PDSP","SERVICIOS DE SALUD PÚBLICA"]
[3,"322",3,2,2,"SILVICULTURA","Silvicultura",null,null,null,null,null,null,null,null,"126","ATENCIÓN SOCIAL EMERGENTE",null,null,null,null,"27A000","TRIBUNAL ELECTORAL"]
[3,"323",3,2,3,"ACUACULTURA, PESCA Y CAZA","Acuacultura, Pesca Y Caza",null,null,null,null,null,null,null,null,"127","ACCIONES PARA PREVENIR Y TRATAR LA VIOLENCIA FAMILIAR",null,null,null,null,"29A000","UNIVERSIDAD AUTÓNOMA DE LA CIUDAD DE MÉXICO"]
[3,"324",3,2,4,"AGROINDUSTRIAL","Agroindustrial",null,null,null,null,null,null,null,null,"128","DESARROLLO URBANO SOSTENIBLE",null,null,null,null,"31C000","SECRETARÍA DE CULTURA"]
[3,"325",3,2,5,"HIDROAGRÍCOLA","Hidroagrícola",null,null,null,null,null,null,null,null,"129","FORTALECIMIENTO DE LOS SERVICIOS DE EDUCACIÓN",null,null,null,null,"31PFMA","FIDEICOMISO MUSEO DE ARTE POPULAR MEXICANO"]
[3,"326",3,2,6,"APOYO FINANCIERO A LA BANCA Y SEGURO AGROPECUARIO","Apoyo Financiero A La Banca Y Seguro Agropecuario",null,null,null,null,null,null,null,null,"132","POLÍTICAS PARA LA ATENCIÓN INTEGRAL DE PERSONAS CON DISCAPACIDAD",null,null,null,null,"31PFME","FIDEICOMISO MUSEO DEL ESTANQUILLO"]
[2,"33",3,3,null,"COMBUSTIBLES Y ENERGÍA","Combustibles Y Energía",null,null,null,null,null,null,null,null,"134","ACCIONES DE VINCULACIÓN Y PROMOCIÓN CULTURAL",null,null,null,null,"31PFPC","FIDEICOMISO DE PROMOCION Y DESARROLLO DEL CINE MEXICANO"]
[3,"331",3,3,1,"CARBÓN Y OTROS COMBUSTIBLES MINERALES SÓLIDOS","Carbón Y Otros Combustibles Minerales Sólidos",null,null,null,null,null,null,null,null,"135","ESPACIOS PÚBLICOS PARA LA CULTURA Y EL ARTE",null,null,null,null,"32A000","INSTITUTO DE TRANSPARENCIA, ACCESO A LA INFORMACIÓN PÚBLICA, PROTECCIÓN DE DATOS PERSONALES Y RENDICIÓN DE CUENTAS"]
[3,"332",3,3,2,"PETRÓLEO Y GAS NATURAL (HIDROCARBUROS)","Petróleo Y Gas Natural (Hidrocarburos)",null,null,null,null,null,null,null,null,"137","SISTEMA ANTICORRUPCIÓN Y FISCALIZACIÓN",null,null,null,null,"33C001","SECRETARÍA DE TRABAJO Y FOMENTO AL EMPLEO"]
[3,"333",3,3,3,"COMBUSTIBLES NUCLEARES","Combustibles Nucleares",null,null,null,null,null,null,null,null,"138","PARTICIPACIÓN CIUDADANA PARA LA EJECUCIÓN DE RECURSOS PÚBLICOS",null,null,null,null,"33PDIT","INSTITUTO DE CAPACITACIÓN PARA EL TRABAJO"]
[3,"334",3,3,4,"OTROS COMBUSTIBLES","Otros Combustibles",null,null,null,null,null,null,null,null,"140","RESPONSABILIDADES Y SANCIONES HACIA SERVIDORES PÚBLICOS",null,null,null,null,"34C001","SECRETARÍA DE GESTIÓN INTEGRAL DE RIESGOS Y PROTECCIÓN CIVIL"]
[3,"335",3,3,5,"ELECTRICIDAD","Electricidad",null,null,null,null,null,null,null,null,"142","ACCIONES DE MANTENIMIENTO EN UNIDADES HABITACIONALES DE INTERÉS SOCIAL",null,null,null,null,"34PDHB","HEROICO CUERPO DE BOMBEROS"]
[3,"336",3,3,6,"ENERGÍA NO ELÉCTRICA","Energía No Eléctrica",null,null,null,null,null,null,null,null,"143","APOYO ECONÓMICO A POBLACIÓN CON DISCAPACIDAD PERMANENTE",null,null,null,null,"35C001","SECRETARÍA DE PUEBLOS Y BARRIOS ORIGINARIOS Y COMUNIDADES INDÍGENAS RESIDENTES"]
[2,"34",3,4,null,"MINERÍA, MANUFACTURAS Y CONSTRUCCIÓN","Minería, Manufacturas Y Construcción",null,null,null,null,null,null,null,null,"145","ESTUDIOS, REVISIONES Y DICTÁMENES RELACIONADOS CON LA SEGURIDAD ESTRUCTURAL",null,null,null,null,"36C001","SECRETARÍA DE EDUCACIÓN, CIENCIA, TECNOLOGÍA E INNOVACIÓN"]
[3,"341",3,4,1,"EXTRACCIÓN DE RECURSOS MINERALES EXCEPTO LOS COMBUSTIBLES MINERALES","Extracción De Recursos Minerales Excepto Los Combustibles Minerales",null,null,null,null,null,null,null,null,"147","REGISTRO DE ESTABLECIMIENTO MERCANTILES",null,null,null,null,"36CD01","UNIVERSIDAD DE LA SALUD"]
[3,"342",3,4,2,"MANUFACTURAS","Manufacturas",null,null,null,null,null,null,null,null,"148","APOYOS PARA LA MEJORA DE LOS CANALES DE ABASTO,COMERCIO Y DISTRIBUCIÓN ",null,null,null,null,"36CDES","INSTITUTO DE ESTUDIOS SUPERIORES DE LA CIUDAD DE MÉXICO \"ROSARIO CASTELLANOS\""]
[3,"343",3,4,3,"CONSTRUCCIÓN","Construcción",null,null,null,null,null,null,null,null,"149","PROTECCIÓN Y DESARROLLO INTEGRAL DE NIÑAS, NIÑOS Y ADOLESCENTES",null,null,null,null,"36PDID","INSTITUTO DEL DEPORTE"]
[2,"35",3,5,null,"TRANSPORTE","Transporte",null,null,null,null,null,null,null,null,"150","FORTALECIMIENTO A LAS SOCIEDADES COOPERATIVAS",null,null,null,null,"36PDIE","INSTITUTO DE EDUCACIÓN MEDIA SUPERIOR"]
[3,"351",3,5,1,"TRANSPORTE POR CARRETERA","Transporte Por Carretera",null,null,null,null,null,null,null,null,"155","ECONOMÍA SOCIAL Y FOMENTO AL COOPERATIVISMO",null,null,null,null,"36PFEG","FIDEICOMISO EDUCACIÓN GARANTIZADA"]
[3,"352",3,5,2,"TRANSPORTE POR AGUA Y PUERTOS","Transporte Por Agua Y Puertos",null,null,null,null,null,null,null,null,"158","ACCIONES ENCAMINADAS A UNA EQUIDAD PARA LAS COMUNIDADES INDÍGENAS RESIDENTES",null,null,null,null,"38C001","SECRETARÍA DE LAS MUJERES"]
[3,"353",3,5,3,"TRANSPORTE POR FERROCARRIL","Transporte Por Ferrocarril",null,null,null,null,null,null,null,null,"159","ATENCIÓN A LA INFANCIA Y ADOLESCENCIA INDÍGENA",null,null,null,null,"39PDSR","SISTEMA PÚBLICO DE RADIODIFUSIÓN DE LA CIUDAD DE MÉXICO"]
[3,"354",3,5,4,"TRANSPORTE AÉREO","Transporte Aéreo",null,null,null,null,null,null,null,null,"161","FORTALECIMIENTO DE LOS SERVICIOS DE SALUD INTEGRAL A PERSONAS VULNERABLES",null,null,null,null,"40A000","FISCALÍA GENERAL DE JUSTICIA"]
[3,"355",3,5,5,"TRANSPORTE POR OLEODUCTOS Y GASODUCTOS Y OTROS SISTEMAS DE TRANSPORTE","Transporte Por Oleoductos Y Gasoductos Y Otros Sistemas De Transporte",null,null,null,null,null,null,null,null,"164","SERVICIOS LEGALES, ORIENTACIÓN TÉCNICA O JURÍDICA A ENTES PÚBLICOS Y PARTICULARES",null,null,null,null,"41PDIP","INSTITUTO DE PLANEACIÓN DEMOCRÁTICA Y PROSPECTIVA"]
[3,"356",3,5,6,"OTROS RELACIONADOS CON TRANSPORTE","Otros Relacionados Con Transporte",null,null,null,null,null,null,null,null,"166","PROCEDIMIENTOS LEGALES EN MATERIA DE REGULARIZACIÓN TERRITORIAL"]
[2,"36",3,6,null,"COMUNICACIONES","Comunicaciones",null,null,null,null,null,null,null,null,"169","ATENCIÓN CULTURAL, SOCIAL Y ECONÓMICA A PENSIONADOS Y JUBILADOS"]
[3,"361",3,6,1,"COMUNICACIONES","Comunicaciones",null,null,null,null,null,null,null,null,"170","ADMINISTRACIÓN DEL SISTEMA DE PENSIONES Y JUBILACIONES"]
[2,"37",3,7,null,"TURISMO","Turismo",null,null,null,null,null,null,null,null,"171","CRÉDITOS A PENSIONADOS Y JUBILADOS"]
[3,"371",3,7,1,"TURISMO","Turismo",null,null,null,null,null,null,null,null,"177","CONDUCCIÓN DE LA POLÍTICA DE GOBIERNO"]
[3,"372",3,7,2,"HOTELES Y RESTAURANTES","Hoteles Y Restaurantes",null,null,null,null,null,null,null,null,"178","COORDINACIÓN METROPOLITANA Y REGIONAL"]
[2,"38",3,8,null,"CIENCIA, TECNOLOGÍA E INNOVACIÓN","Ciencia, Tecnología E Innovación",null,null,null,null,null,null,null,null,"179","ACCIONES PARA LA PROTECCIÓN INTEGRAL DE PERSONAS DEFENSORAS DE LOS DERECHOS HUMANOS, DE LA LIBERTAD DE EXPRESIÓN Y EL PERIODISMO"]
[3,"381",3,8,1,"INVESTIGACIÓN CIENTÍFICA","Investigación Científica",null,null,null,null,null,null,null,null,"181","OTROS SUBSIDIOS PARA EL PAGO DE CONTRIBUCIONES"]
[3,"382",3,8,2,"DESARROLLO TECNOLÓGICO","Desarrollo Tecnológico",null,null,null,null,null,null,null,null,"187","DESARROLLO ORGANIZACIONAL Y MODERNIZACIÓN GUBERNAMENTAL"]
[3,"383",3,8,3,"SERVICIOS CIENTÍFICOS Y TECNOLÓGICOS","Servicios Científicos Y Tecnológicos",null,null,null,null,null,null,null,null,"195","PLANEACIÓN, REGULACIÓN Y VERIFICACIÓN DE CORREDORES DE TRANSPORTE Y CENTROS DE TRANSFERENCIA MODAL"]
[3,"384",3,8,4,"INNOVACIÓN","Innovación",null,null,null,null,null,null,null,null,"196","PROYECTOS PARA LA MODERNIZACIÓN DE LA INFRAESTRUCTURA PARA LA MOVILIDAD NO MOTORIZADA Y PEATONAL"]
[2,"39",3,9,null,"OTRAS INDUSTRIAS Y OTROS ASUNTOS ECONÓMICOS","Otras Industrias Y Otros Asuntos Económicos",null,null,null,null,null,null,null,null,"199","PUNTOS DE INNOVACIÓN, LIBERTAD, ARTE, EDUCACIÓN Y SABERES (PILARES)"]
[3,"391",3,9,1,"COMERCIO, DISTRIBUCIÓN, ALMACENAMIENTO Y DEPÓSITO","Comercio, Distribución, Almacenamiento Y Depósito",null,null,null,null,null,null,null,null,"200","SUMINISTRO DE AGUA POTABLE"]
[3,"392",3,9,2,"OTRAS INDUSTRIAS","Otras Industrias",null,null,null,null,null,null,null,null,"201","BECAS NIVEL MEDIO SUPERIOR"]
[3,"393",3,9,3,"OTROS ASUNTOS ECONÓMICOS","Otros Asuntos Económicos",null,null,null,null,null,null,null,null,"202","CONSTRUCCIÓN, REAHABILITACIÓN, SECTORIZACIÓN Y OPERACIÓN DE LA INFRAESTRUCTURA DE AGUA POTABLE"]
[1,"4",4,null,null,"OTRAS NO CLASIFICADAS EN FUNCIONES ANTERIORES","Otras No Clasificadas En Funciones Anteriores",null,null,null,null,null,null,null,null,"205","LEONA VICARIO"]
[{"$f":"+LEN(B131)","v":2},{"$f":"CONCATENATE(C131,D131,E131)","v":"41"},4,1,null,"TRANSACCIONES DE LA DEUDA PUBLICA / COSTO FINANCIERO DE LA DEUDA","Transacciones De La Deuda Publica / Costo Financiero De La Deuda",null,null,null,null,null,null,null,null,"206","CAPACITACIÓN PARA LA INSERCIÓN LABORAL"]
[3,"411",4,1,1,"DEUDA PÚBLICA INTERNA","Deuda Pública Interna",null,null,null,null,null,null,null,null,"207","DESAYUNOS ESCOLARES Y COMPLEMENTO ALIMENTICIO"]
[3,"412",4,1,2,"DEUDA PÚBLICA EXTERNA","Deuda Pública Externa",null,null,null,null,null,null,null,null,"209","UNIFORMES ESCOLARES GRATUITOS"]
[2,"42",4,2,null,"TRANSFERENCIAS, PARTICIPACIONES Y APORTACIONES ENTRE DIFERENTES NIVELES Y ORDENES DE GOBIERNO","Transferencias, Participaciones Y Aportaciones Entre Diferentes Niveles Y Órdenes De Gobierno",null,null,null,null,null,null,null,null,"213","CRECIMIENTO Y DESARROLLO SUSTENTABLE"]
[3,"421",4,2,1,"TRANSFERENCIAS ENTRE DIFERENTES NIVELES Y ORDENES DE GOBIERNO","Transferencias Entre Diferentes Niveles Y Órdenes De Gobierno",null,null,null,null,null,null,null,null,"214","ATENCIÓN PARA EL DESARROLLO INTEGRAL DE NIÑOS EN CONDICIÓN DE VULNERABILIDAD"]
[3,"422",4,2,2,"PARTICIPACIONES ENTRE DIFERENTES NIVELES Y ORDENES DE GOBIERNO","Participaciones Entre Diferentes Niveles Y Órdenes De Gobierno",null,null,null,null,null,null,null,null,"217","REGULACIÓN Y VIGILANCIA AMBIENTAL"]
[3,"423",4,2,3,"APORTACIONES ENTRE DIFERENTES NIVELES Y ORDENES DE GOBIERNO","Aportaciones Entre Diferentes Niveles Y Órdenes De Gobierno",null,null,null,null,null,null,null,null,"218","DESARROLLO CULTURAL COMUNITARIO"]
[2,"43",4,3,null,"SANEAMIENTO DEL SISTEMA FINANCIERO","Saneamiento Del Sistema Financiero",null,null,null,null,null,null,null,null,"219","PROMOTORES CULTURALES"]
[3,"431",4,3,1,"SANEAMIENTO DEL SISTEMA FINANCIERO","Saneamiento Del Sistema Financiero",null,null,null,null,null,null,null,null,"220","GESTIÓN DE TALLERES DE ARTES Y OFICIOS"]
[3,"432",4,3,2,"APOYOS IPAB","Apoyos Ipab",null,null,null,null,null,null,null,null,"221","ACCIONES PARA LA VIVIENDA EN CONJUNTO"]
[3,"433",4,3,3,"BANCA DE DESARROLLO","Banca De Desarrollo",null,null,null,null,null,null,null,null,"222","COLABORACIÓN PARA EL FORTALECIMIENTO DE IGUALDAD EN LA CIUDAD DE MÉXICO"]
[3,"434",4,3,4,"APOYO A LOS PROGRAMAS DE REESTRUCTURA EN UNIDADES DE INVERSIÓN (UDIS)","Apoyo A Los Programas De Reestructura En Unidades De Inversión (Udis)",null,null,null,null,null,null,null,null,"224","PREVENSIÓN Y ATENCIÓN DE LA VIOLENCIA CONTRA LAS MUJERES"]
[2,"44",4,4,null,"ADEUDOS DE EJERCICIOS FISCALES ANTERIORES","Adeudos De Ejercicios Fiscales Anteriores",null,null,null,null,null,null,null,null,"226","FORTALECIMIENTO DE LA COHESIÓN SOCIAL"]
[3,"441",4,4,1,"ADEUDOS DE EJERCICIOS FISCALES ANTERIORES","Adeudos De Ejercicios Fiscales Anteriores",null,null,null,null,null,null,null,null,"227","ESTÍMULOS ECONÓMICOS A DEPORTISTAS DESTACADOS REPRESENTATIVOS"]
[null,null,null,null,null,null,null,null,null,null,null,null,null,null,null,"228","ESTÍMULOS ECONÓMICOS A LAS ASOCIACIONES DEPORTIVAS QUE PARTICIPAN EN LA OLIMPIADA, PARALIMPIADA Y NACIONAL JUVENIL"]
[null,null,null,null,null,null,null,null,null,null,null,null,null,null,null,"229","PONTE PILA, DEPORTE COMUNITARIO"]
[null,null,null,null,null,null,null,null,null,null,null,null,null,null,null,"231","APOYO PARA MANTENIMIENTO MENOR A ESCUELAS PÚBLICAS DE EDUCACIÓN BÁSICA"]
[null,null,null,null,null,null,null,null,null,null,null,null,null,null,null,"233","RECUPERACIÓN CREDITICIA"]
[null,null,null,null,null,null,null,null,null,null,null,null,null,null,null,"234","SISTEMAS DE CAPTACIÓN DE LLUVIA"]
[null,null,null,null,null,null,null,null,null,null,null,null,null,null,null,"238","ACCESO A EDUCACIÓN SUPERIOR"]
[null,null,null,null,null,null,null,null,null,null,null,null,null,null,null,"239","ACCESO A POSGRADOS"]
[null,null,null,null,null,null,null,null,null,null,null,null,null,null,null,"241","BÚSQUEDA DE PERSONAS DESAPARECIDAS Y NO IDENTIFICADAS"]
[null,null,null,null,null,null,null,null,null,null,null,null,null,null,null,"242","FORMACIÓN DE ASPIRANTES"]
[null,null,null,null,null,null,null,null,null,null,null,null,null,null,null,"243","GESTIÓN DE PANTEONES PÚBLICOS"]
[null,null,null,null,null,null,null,null,null,null,null,null,null,null,null,"244","APOYOS Y SERVICIOS SOCIALES"]
[null,null,null,null,null,null,null,null,null,null,null,null,null,null,null,"245","AMPLIACIÓN DE INFRAESTRUCTURA PARA EL TRANSPORTE PÚBLICO"]
[null,null,null,null,null,null,null,null,null,null,null,null,null,null,null,"246","PROTECCIÓN SOCIAL PARA EL DESEMPLEO"]
[null,null,null,null,null,null,null,null,null,null,null,null,null,null,null,"248","OPERACIÓN DE LA POLICÍA DE PROXIMIDAD"]
[null,null,null,null,null,null,null,null,null,null,null,null,null,null,null,"253","PROMOCIÓN SOCIAL E IMAGEN INSTITUCIONAL"]
[null,null,null,null,null,null,null,null,null,null,null,null,null,null,null,"256","GESTIÓN DE ACTIVIDADES CULTURALES"]
[null,null,null,null,null,null,null,null,null,null,null,null,null,null,null,"260","CONTRAPRESTACIÓN DE SERVICIOS DE PROTECCIÓN, SEGURIDAD Y VIGILANCIA"]
[null,null,null,null,null,null,null,null,null,null,null,null,null,null,null,"261","ATENCIÓN A VÍCTIMAS"]
[null,null,null,null,null,null,null,null,null,null,null,null,null,null,null,"262","ATENCIÓN Y ORIENTACIÓN CIUDADANA INTEGRAL"]
[null,null,null,null,null,null,null,null,null,null,null,null,null,null,null,"263","PRESUPUESTO PARTICIPATIVO"]
[null,null,null,null,null,null,null,null,null,null,null,null,null,null,null,"264","PLANEACIÓN INTEGRAL DEL SISTEMA DE MOVILIDAD"]
[null,null,null,null,null,null,null,null,null,null,null,null,null,null,null,"265","ACCIONES PARA LA OPERACIÓN Y PROMOCIÓN DE SISTEMAS DE MOVILIDAD"]
[null,null,null,null,null,null,null,null,null,null,null,null,null,null,null,"266","ACCIONES DE RECONTRUCCIÓN, REHABILITACIÓN DE VIVIENDAS Y OTRAS PREVISIONES"]
[null,null,null,null,null,null,null,null,null,null,null,null,null,null,null,"267","EDUCACIÓN PREVENCIÓN Y ATENCIÓN DE POLÍTICAS DE SEGURIDAD VIAL"]
[null,null,null,null,null,null,null,null,null,null,null,null,null,null,null,"268","APLICACIÓN DEL MARCO NORMATIVO EN MATERIA DE TRANSPORTE"]
[null,null,null,null,null,null,null,null,null,null,null,null,null,null,null,"270","DESARROLLO DE INFRAESTRUCTURA PEATONAL Y CICLISTA"]
[null,null,null,null,null,null,null,null,null,null,null,null,null,null,null,"271","ACCIONES DE MEJORA PARA EL SERVICIO TRANSPORTE PÚBLICO"]
[null,null,null,null,null,null,null,null,null,null,null,null,null,null,null,"272","PROTECCIÓN DE LA INTEGRIDAD Y EL PATRIMONIO DE LAS PERSONAS"]
[null,null,null,null,null,null,null,null,null,null,null,null,null,null,null,"274","MANTENIMIENTO DE INFRAESTRUCTURA PÚBLICA"]
[null,null,null,null,null,null,null,null,null,null,null,null,null,null,null,"275","ATENCIÓN A PRODUCTORES AGROPECUARIOS"]
[null,null,null,null,null,null,null,null,null,null,null,null,null,null,null,"277"," TRANSFERENCIAS A ÓRGANOS AUTÓNOMOS, CONGRESO DE LA CIUDAD DE MÉXICO"]
[null,null,null,null,null,null,null,null,null,null,null,null,null,null,null,"278"," TRANSFERENCIAS A ÓRGANOS AUTÓNOMOS, AUDITORÍA SUPERIOR DE LA CIUDAD DE MÉXICO"]
[null,null,null,null,null,null,null,null,null,null,null,null,null,null,null,"279"," TRANSFERENCIAS A ÓRGANOS AUTÓNOMOS, TRIBUNAL SUPERIOR DE JUSTICIA"]
[null,null,null,null,null,null,null,null,null,null,null,null,null,null,null,"280"," TRANSFERENCIAS A ÓRGANOS AUTÓNOMOS, CONSEJO DE LA JUDICATURA"]
[null,null,null,null,null,null,null,null,null,null,null,null,null,null,null,"281"," TRANSFERENCIAS A ÓRGANOS AUTÓNOMOS, TRIBUNAL DE JUSTICIA ADMINISTRATIVA"]
[null,null,null,null,null,null,null,null,null,null,null,null,null,null,null,"282"," TRANSFERENCIAS A ÓRGANOS AUTÓNOMOS, JUNTA LOCAL DE CONCILIACIÓN Y ARBITRAJE"]
[null,null,null,null,null,null,null,null,null,null,null,null,null,null,null,"283"," TRANSFERENCIAS A ÓRGANOS AUTÓNOMOS, COMISIÓN DE DERECHOS HUMANOS"]
[null,null,null,null,null,null,null,null,null,null,null,null,null,null,null,"284"," TRANSFERENCIAS A ÓRGANOS AUTÓNOMOS, INSTITUTO ELECTORAL"]
[null,null,null,null,null,null,null,null,null,null,null,null,null,null,null,"285"," TRANSFERENCIAS A ÓRGANOS AUTÓNOMOS, TRIBUNAL ELECTORAL"]
[null,null,null,null,null,null,null,null,null,null,null,null,null,null,null,"286"," TRANSFERENCIAS A ÓRGANOS AUTÓNOMOS, UNIVERSIDAD AUTÓNOMA DE LA CIUDAD DE MÉXICO"]
[null,null,null,null,null,null,null,null,null,null,null,null,null,null,null,"287"," TRANSFERENCIAS A ÓRGANOS AUTÓNOMOS, INSTITUTO DE TRANSPARENCIA, ACCESO A LA INFORMACIÓN PÚBLICA, PROTECCIÓN DE DATOS PERSONALES Y RENDICIÓN DE CUENTAS"]
[null,null,null,null,null,null,null,null,null,null,null,null,null,null,null,"288","ACIONES RECREATIVAS Y EDUCATIVAS EN BENEFICIO DE NIÑAS, NIÑOS Y ADOLECENTES"]
[null,null,null,null,null,null,null,null,null,null,null,null,null,null,null,"289","DEFENSA DE LA NIÑEZ Y LAS FAMILIAS"]
[null,null,null,null,null,null,null,null,null,null,null,null,null,null,null,"290","DEVOLUCIÓN A CONTRIBUYENTES"]
[null,null,null,null,null,null,null,null,null,null,null,null,null,null,null,"293","PROMOCIÓN Y VIGILANCIA DE LA APLICACIÓN DE LAS DISPOSICIONES JURÍDICAS EN MATERIA AMBIENTAL, DE ORDENAMIENTO TERRITORIAL Y DE PROTECCIÓN Y BIENESTAR ANIMAL"]
[null,null,null,null,null,null,null,null,null,null,null,null,null,null,null,"294","TRANSVERSALIZACIÓN DE LA PERSPECTIVA DE LOS DERECHOS DE LA NIÑEZ Y DE LA ADOLESCENCIA"]
[null,null,null,null,null,null,null,null,null,null,null,null,null,null,null,"295"," TRANSFERENCIAS A ÓRGANOS AUTÓNOMOS, INSTITUTO DE TRANSPARENCIA, ACCESO A LA INFORMACIÓN PÚBLICA, PROTECCIÓN DE DATOS PERSONALES Y RENDICIÓN DE CUENTAS"]

{"sheet":"Ejes y subejes_","index":5,"n_rows":139,"n_cols":7,"rows_kept":139,"cut":false,"hidden":true,"merged":[]}
["Eje","SUB Eje","SUB Sub Eje","DENOMINACIÓN"]
[1,null,null,"Igualdad y Derechos"]
[null,11,null,"Derecho a la educación"]
[null,null,111,"Ampliar y fortalecer la educación inicial",null,null,1]
[null,null,112,"Apoyar a la Secretaría de Educación Pública Federal en la mejora integral de la educación básica en la Ciudad",null,null,2]
[null,null,113,"Fortalecer y ampliar la cobertura de la educación media superior en las demarcaciones periféricas",null,null,3]
[null,null,114,"Fortalecer y ampliar la cobertura de la educación superior pública",null,null,4]
[null,null,115,"PILARES: Puntos de Innovación, Libertades, Artes, Educación y Saberes",null,null,5]
[null,12,null,"Derecho a la salud",null,null,6]
[null,null,121,"Salud Universal",null,null,7]
[null,null,122,"Integración hacia un sistema único de atención a la salud",null,null,8]
[null,null,123,"Ampliación de servicios y atención de emergencias",null,null,9]
[null,null,124,"Participación para una vida saludable",null,null,10]
[null,null,125,"Profesionalización del servicio médico",null,null,11]
[null,13,null,"Derecho a la cultura física y la práctica del deporte",null,null,12]
[null,null,131," Promoción del deporte comunitario ",null,null,13]
[null,null,132,"Fortalecimiento de infraestructura deportiva",null,null,14]
[null,null,133,"Condiciones óptimas para deportistas de alto rendimiento",null,null,15]
[null,14,null,"Derecho a la vivienda",null,null,0]
[null,null,141,"Reconstrucción y rehabilitación de viviendas dañadas por el sismo de 2017"]
[null,null,142,"Programa de vivienda social"]
[null,null,143,"Apoyo a Unidades Habitacionales"]
[null,15,null,"Derechos de las mujeres"]
[null,null,150,"Derechos de las mujeres"]
[null,16,null,"Derecho a la igualdad e inclusión"]
[null,null,161,"Niñas, niños y adolescentes"]
[null,null,162,"Jóvenes"]
[null,null,163,"Personas adultas mayores"]
[null,null,164,"Personas con discapacidad"]
[null,null,165," Personas LGBTTIQA"]
[null,null,166,"Personas en situación de calle"]
[null,null,167,"Personas migrantes"]
[null,null,168,"Víctimas"]
[null,17,null,"Pueblos originarios y poblaciones indígenas residentes"]
[null,null,170,"Pueblos originarios y poblaciones indígenas residentes"]
[2,null,null,"Ciudad Sustentable"]
[null,21,null,"Desarrollo económico sustentable e incluyente y generación de empleo"]
[null,null,211,"Apoyo a la industria innovadora, sustentable y la economía circular"]
[null,null,212,"Apoyo a la micro y pequeña empresa"]
[null,null,213,"Fortalecer la economía social y el emprendimiento"]
[null,null,214,"Mejorar los canales de abasto, comercio y distribución"]
[null,null,215,"Fomento al turismo"]
[null,null,216,"Mejorar la protección social para el desempleo"]
[null,null,217,"Derechos humanos y empleo"]
[null,22,null,"Desarrollo urbano sustentable e incluyente"]
[null,null,221,"Ordenamiento de desarrollo urbano"]
[null,null,222,"Ampliación de parques, espacios públicos y mejora de servicios urbanos"]
[null,null,223,"Atención de asentamientos humanos irregulares "]
[null,null,224,"Regularización de la propiedad en colonias ubicadas en el suelo urbano"]
[null,23,null,"Medio ambiente y recursos naturales"]
[null,null,231,"Calidad del Aire"]
[null,null,232,"Garantizar el derecho al aguay disminuir la sobreexplotación del acuífero. Mejora integral del drenaje y saneamiento "]
[null,null,233,"Programa integral de Residuos Sólidos"]
[null,null,234,"Regenerar las condiciones ecológicas de la ciudad: Áreas de Valor Ambiental, Áreas Naturales Protegidas y Suelo de Conservación."]
[3,null,null,"Más y Mejor Movilidad"]
[null,31,null,"Integrar"]
[null,null,311,"Integración del sistema de transporte público"]
[null,null,312,"Expansión de la cobertura de redes de transporte masivo"]
[null,null,313,"Reforma integral del transporte concesionado"]
[null,null,314,"Integración del uso de la bicicleta al sistema de movilidad"]
[null,32,null," Mejorar"]
[null,null,321,"Rescate y mejora del transporte público Programa de Gobierno 2019 - 2024"]
[null,null,322,"Gestión del tránsito y estacionamiento"]
[null,null,323,"Regulación de los servicios privados de movilidad"]
[null,null,324,"Impulso a la innovación y mejora tecnológica"]
[null,null,325,"Transporte de carga"]
[null,null,326,"Mejora en la atención ciudadana"]
[null,33,null,"Proteger"]
[null,null,331,"Infraestructura segura y con accesibilidad universal para caminar y moverse en bicicleta"]
[null,null,332,"Política de seguridad vial orientada al cambio de conducta"]
[4,null,null,"Ciudad de México, capital cultural de America Latina"]
[null,41,null,"Cultura Comunitaria"]
[null,null,410,"Cultura Comunitaria"]
[null,42,null,"Memoria y Patrimonio Cultural comunitario"]
[null,null,420,"Memoria y Patrimonio Cultural comunitario"]
[null,43,null,"Educación y Formación Artística y Cultural"]
[null,null,430,"Educación y Formación Artística y Cultural"]
[null,44,null,"Festivales y Fiestas"]
[null,null,440,"Festivales y Fiestas"]
[null,45,null,"Promoción y Difusión de los Derechos Culturales"]
[null,null,450,"Promoción y Difusión de los Derechos Culturales"]
[null,46,null,"Pueblos originarios"]
[null,null,460,"Pueblos originarios"]
[null,47,null,"Vinculación Interinstitucional y cooperación cultural"]
[null,null,470,"Vinculación Interinstitucional y cooperación cultural"]
[5,null,null,"Cero Agresión y Más Seguridad"]
[null,51,null,"Seguridad Ciudadana"]
[null,null,511,"Actualización de la normatividad en materia de Seguridad Ciudadana y del Gabinete de Seguridad, Justicia y Gobierno"]
[null,null,512,"Fortalecimiento del Mando Único"]
[null,null,513,"Coordinación con el Gobierno Federal"]
[null,null,514,"Coordinación con Gabinete de Seguridad, Justicia y Gobierno"]
[null,null,515,"Erradicar la corrupción, fortalecer la transparencia y la rendición de cuentas"]
[null,null,516,"Fortalecimiento del trabajo de planeación e inteligencia"]
[null,null,517,"Operación policial basada en cuadrantes, controles de confianza y su evaluación permanente "]
[null,null,518,"Estrategía de seguridad para el transporte público"]
[null,null,519,"Formación, capacitación y carrera policial"]
[null,null,5110,"Mejoramiento de las condiciones laborales, apoyo e incentivos a la Policía de la Ciudad de México"]
[null,null,5111,"Protección de los derechos humanos de la ciudadanía y protocolos de actuación policial"]
[null,null,5112,"Fortalecimiento de la prevención "]
[null,null,5113,"Estrategia Alto al Fuego en colonias, barrios y pueblos con mayor índice delictivo"]
[null,null,5114,"Policía de proximidad y cercania con la ciudadania"]
[null,null,5115,"Coordinación con el Consejo Ciudadano de Seguridad y Justicia"]
[null,52,null,"Fortalecimiento de la procuración de justicia"]
[null,null,521,"Erradicar prácticas de corrupción "]
[null,null,522,"Atención específica por tipo de delito"]
[null,null,523,"Enfoque de atención a víctimas"]
[null,null,524,"Profesionalización de servidores públicos"]
[null,null,525,"Cultura de denuncia"]
[null,null,526,"Rendición de cuentas y transparencia"]
[null,null,527,"Transición a Fiscalía"]
[null,53,null,"Protección civil "]
[null,null,531,"Sistema de Gestión Integral de Riesgos"]
[null,null,532,"Conocimiento del riesgo en la toma de desiciones "]
[null,null,533,"Evitar nuevos riesgos"]
[null,null,534,"Respuesta eficaz"]
[6,null,null,"Ciencia, Innovación y Transparencia"]
[null,61,null,"Tecnología",null,{"$f":"CONCATENATE(G9,G4)","v":"61"},{"$f":"VLOOKUP(F117,B117:D119,3,0)","v":{"$error":"#N/A"}}]
[null,null,611,"Gestión de capas de información pliar y fortalecer la educación inicial"]
[null,null,612,"Interoperabilidad y conectividad"]
[null,null,613,"Reducción de costos de transacción"]
[null,null,614,"Política de conectividad"]
[null,null,615,"Gobernanza tecnológica"]
[null,null,616,"Renovación tecnológica"]
[null,62,null,"Ciencia y divulgación"]
[null,null,621,"Investigación, tecnología e innovación para satisfacer demandas de la ciudad"]
[null,null,622,"Formación"]
[null,null,623,"Divulgación y vinculación científica"]
[null,null,624,"Promover condiciones óptimas para el desarrollo e innovación tecnológicos"]
[null,63,null,"Gobierno Abierto"]
[null,null,631,"Democracia participativa"]
[null,null,632,"Controles al ejercicio del gobierno"]
[null,64,null,"Atención Ciudadana "]
[null,null,641,"Modelo de atención ciudadana"]
[null,null,642,"Conexión y acercamiento ciudadano"]
[null,65,null,"Seguridad, protección civil y coordinación interinstitucional"]
[null,null,651,"Alerta inmediata"]
[null,null,652,"Profesionalización de los servicios de atención de emergencia vía telefónica"]
[null,null,653,"Promover la seguridad ciudadana en la Central de Abasto"]
[null,null,654,"Mejorar la atención prehospitalaria"]